Workbook

Sheet Стимуляторы
D3: Рекуперант альфа М | E3: Перцептил бета М | F3: Перцептил альфа М | G3: Перцептил бета М | H3: Перцептил альфа | I3: Перцептил бета | J3: Перцептил альфа М | K3: Перцептил бета М | L3: Перцептил альфа | M3: Перцептил бета
D7: =VLOOKUP(D3,'Таблицы стимуляторов'!$A$2:$N$43,13,0) -> токсичность | E7: =VLOOKUP(E3,'Таблицы стимуляторов'!$A$2:$N$43,13,0) -> токсичность | F7: =VLOOKUP(F3,'Таблицы стимуляторов'!$A$2:$N$43,13,0) -> токсичность | G7: =VLOOKUP(G3,'Таблицы стимуляторов'!$A$2:$N$43,13,0) -> токсичность | H7: =VLOOKUP(H3,'Таблицы стимуляторов'!$A$2:$N$43,13,0) -> токсичность | I7: =VLOOKUP(I3,'Таблицы стимуляторов'!$A$2:$N$43,13,0) -> токсичность | J7: =VLOOKUP(J3,'Таблицы стимуляторов'!$A$2:$N$43,13,0) -> токсичность | K7: =VLOOKUP(K3,'Таблицы стимуляторов'!$A$2:$N$43,13,0) -> токсичность | L7: =VLOOKUP(L3,'Таблицы стимуляторов'!$A$2:$N$43,13,0) -> токсичность | M7: =VLOOKUP(M3,'Таблицы стимуляторов'!$A$2:$N$43,13,0) -> токсичность
D8: =VLOOKUP(D3,'Таблицы стимуляторов'!$A$2:$N$43,14,0) -> 4 | E8: =VLOOKUP(E3,'Таблицы стимуляторов'!$A$2:$N$43,14,0) -> 4 | F8: =VLOOKUP(F3,'Таблицы стимуляторов'!$A$2:$N$43,14,0) -> 5 | G8: =VLOOKUP(G3,'Таблицы стимуляторов'!$A$2:$N$43,14,0) -> 4 | H8: =VLOOKUP(H3,'Таблицы стимуляторов'!$A$2:$N$43,14,0) -> 5 | I8: =VLOOKUP(I3,'Таблицы стимуляторов'!$A$2:$N$43,14,0) -> 4 | J8: =VLOOKUP(J3,'Таблицы стимуляторов'!$A$2:$N$43,14,0) -> 5 | K8: =VLOOKUP(K3,'Таблицы стимуляторов'!$A$2:$N$43,14,0) -> 4 | L8: =VLOOKUP(L3,'Таблицы стимуляторов'!$A$2:$N$43,14,0) -> 5 | M8: =VLOOKUP(M3,'Таблицы стимуляторов'!$A$2:$N$43,14,0) -> 4
D9: =VLOOKUP(D3,Таблица_стимуляторы[],3,0) -> регенирация | E9: =VLOOKUP(E3,Таблица_стимуляторы[],3,0) -> Точность | F9: =VLOOKUP(F3,Таблица_стимуляторы[],3,0) -> Точность | G9: =VLOOKUP(G3,Таблица_стимуляторы[],3,0) -> Точность | H9: =VLOOKUP(H3,Таблица_стимуляторы[],3,0) -> Точность | I9: =VLOOKUP(I3,Таблица_стимуляторы[],3,0) -> Точность | J9: =VLOOKUP(J3,Таблица_стимуляторы[],3,0) -> Точность | K9: =VLOOKUP(K3,Таблица_стимуляторы[],3,0) -> Точность | L9: =VLOOKUP(L3,Таблица_стимуляторы[],3,0) -> Точность | M9: =VLOOKUP(M3,Таблица_стимуляторы[],3,0) -> Точность
D10: =VLOOKUP(D3,Таблица_расчета_стимуляторов[],VALUE(3),0) -> 0.11 | E10: =VLOOKUP(E3,Таблица_расчета_стимуляторов[],VALUE(4),0) -> 0.0021875 | F10: =VLOOKUP(F3,Таблица_расчета_стимуляторов[],VALUE(5),0) -> 0.0075 | G10: =VLOOKUP(G3,Таблица_расчета_стимуляторов[],VALUE(6),0) -> 0.00109375 | H10: =VLOOKUP(H3,Таблица_расчета_стимуляторов[],VALUE(7),0) -> 0.1 | I10: =VLOOKUP(I3,Таблица_расчета_стимуляторов[],VALUE(8),0) -> 0.03 | J10: =VLOOKUP(J3,Таблица_расчета_стимуляторов[],VALUE(9),0) -> 0.00375 | K10: =VLOOKUP(K3,Таблица_расчета_стимуляторов[],VALUE(10),0) -> 0.000546875 | L10: =VLOOKUP(L3,Таблица_расчета_стимуляторов[],VALUE(11),0) -> 0.05 | M10: =VLOOKUP(M3,Таблица_расчета_стимуляторов[],VALUE(12),0) -> 0.015
D11: =VLOOKUP(D3,Таблица_стимуляторы[],5,0) -> Вост. эфф. | E11: =VLOOKUP(E3,Таблица_стимуляторы[],5,0) -> Крит. поп. | F11: =VLOOKUP(F3,Таблица_стимуляторы[],5,0) -> Крит. поп. | G11: =VLOOKUP(G3,Таблица_стимуляторы[],5,0) -> Крит. поп. | H11: =VLOOKUP(H3,Таблица_стимуляторы[],5,0) -> Крит. поп. | I11: =VLOOKUP(I3,Таблица_стимуляторы[],5,0) -> Крит. поп. | J11: =VLOOKUP(J3,Таблица_стимуляторы[],5,0) -> Крит. поп. | K11: =VLOOKUP(K3,Таблица_стимуляторы[],5,0) -> Крит. поп. | L11: =VLOOKUP(L3,Таблица_стимуляторы[],5,0) -> Крит. поп. | M11: =VLOOKUP(M3,Таблица_стимуляторы[],5,0) -> Крит. поп.
D12: =VLOOKUP(D3,Таблица_расчета_стимуляторов[],VALUE(15),0) -> 8 | E12: =VLOOKUP(E3,Таблица_расчета_стимуляторов[],VALUE(16),0) -> 0.0021875 | F12: =VLOOKUP(F3,Таблица_расчета_стимуляторов[],VALUE(17),0) -> 0.0075 | G12: =VLOOKUP(G3,Таблица_расчета_стимуляторов[],VALUE(18),0) -> 0.00109375 | H12: =VLOOKUP(H3,Таблица_расчета_стимуляторов[],VALUE(19),0) -> 0.1 | I12: =VLOOKUP(I3,Таблица_расчета_стимуляторов[],VALUE(20),0) -> 0.03 | J12: =VLOOKUP(J3,Таблица_расчета_стимуляторов[],VALUE(21),0) -> 0.00375 | K12: =VLOOKUP(K3,Таблица_расчета_стимуляторов[],VALUE(22),0) -> 0.000546875 | L12: =VLOOKUP(L3,Таблица_расчета_стимуляторов[],VALUE(23),0) -> 0.05 | M12: =VLOOKUP(M3,Таблица_расчета_стимуляторов[],VALUE(24),0) -> 0.015
D13: =VLOOKUP(D3,Таблица_стимуляторы[],7,0) -> 0 | E13: =VLOOKUP(E3,Таблица_стимуляторы[],7,0) -> Эфф.боепр. | F13: =VLOOKUP(F3,Таблица_стимуляторы[],7,0) -> Эфф.боепр. | G13: =VLOOKUP(G3,Таблица_стимуляторы[],7,0) -> Эфф.боепр. | H13: =VLOOKUP(H3,Таблица_стимуляторы[],7,0) -> Эфф.боепр. | I13: =VLOOKUP(I3,Таблица_стимуляторы[],7,0) -> Эфф.боепр. | J13: =VLOOKUP(J3,Таблица_стимуляторы[],7,0) -> Эфф.боепр. | K13: =VLOOKUP(K3,Таблица_стимуляторы[],7,0) -> Эфф.боепр. | L13: =VLOOKUP(L3,Таблица_стимуляторы[],7,0) -> Эфф.боепр. | M13: =VLOOKUP(M3,Таблица_стимуляторы[],7,0) -> Эфф.боепр.
D14: =VLOOKUP(D3,Таблица_расчета_стимуляторов[],VALUE(27),0) -> 0 | E14: =VLOOKUP(E3,Таблица_расчета_стимуляторов[],VALUE(28),0) -> 0.0021875 | F14: =VLOOKUP(F3,Таблица_расчета_стимуляторов[],VALUE(29),0) -> 0.0075 | G14: =VLOOKUP(G3,Таблица_расчета_стимуляторов[],VALUE(30),0) -> 0.00109375 | H14: =VLOOKUP(H3,Таблица_расчета_стимуляторов[],VALUE(31),0) -> 0.1 | I14: =VLOOKUP(I3,Таблица_расчета_стимуляторов[],VALUE(32),0) -> 0.03 | J14: =VLOOKUP(J3,Таблица_расчета_стимуляторов[],VALUE(33),0) -> 0.00375 | K14: =VLOOKUP(K3,Таблица_расчета_стимуляторов[],VALUE(34),0) -> 0.000546875 | L14: =VLOOKUP(L3,Таблица_расчета_стимуляторов[],VALUE(35),0) -> 0.05 | M14: =VLOOKUP(M3,Таблица_расчета_стимуляторов[],VALUE(36),0) -> 0.015

Sheet Таблицы стимуляторов
Q1: Таблица расчетов стимуляторов
P2: Столбец1 | Q2: Столбец2 | R2: Столбец3 | S2: Столбец4 | T2: Столбец5 | U2: Столбец6 | V2: Столбец7 | W2: Столбец8 | X2: Столбец9 | Y2: Столбец10 | Z2: Столбец11 | AA2: Столбец12 | AB2: Кол-во | AC2: Столбец13 | AD2: Столбец14 | AE2: Столбец15 | AF2: Столбец16 | AG2: Столбец17 | AH2: Столбец18 | AI2: Столбец19 | AJ2: Столбец20 | AK2: Столбец21 | AL2: Столбец22 | AM2: Столбец23 | AN2: Кол-во2 | AO2: Столбец24 | AP2: Столбец25 | AQ2: Столбец26 | AR2: Столбец27 | AS2: Столбец28 | AT2: Столбец29 | AU2: Столбец30 | AV2: Столбец31 | AW2: Столбец32 | AX2: Столбец33 | AY2: Столбец34 | AZ2: Кол-во4
P3: Выберите стимулятор | Q3: 0 | R3: 0 | S3: 0 | T3: 0 | U3: 0 | V3: 0 | W3: 0 | X3: 0 | Y3: 0 | Z3: 0 | AA3: 0 | AB3: 0 | AC3: 0 | AD3: 0 | AE3: 0 | AF3: 0 | AG3: 0 | AH3: 0 | AI3: 0 | AJ3: 0 | AK3: 0 | AL3: 0 | AM3: 0 | AN3: 0
P4: Гемобуфер Альфа | Q4: Здоровье | R4: =IF(Стимуляторы!$D$3="гемобуфер альфа",0.5^(COUNTIF(Стимуляторы!$D$3,"гемобуфер альфа")-1)*$D$17,0) -> 0 | S4: =IF(Стимуляторы!E3="гемобуфер альфа",0.5^(COUNTIF(Стимуляторы!$D$3:E3,"гемобуфер альфа")-1)*$D$17,0) -> 0 | T4: =IF(Стимуляторы!F3="гемобуфер альфа",0.5^(COUNTIF(Стимуляторы!D3:F3,"гемобуфер альфа")-1)*$D$17,0) -> 0 | U4: =IF(Стимуляторы!G3="гемобуфер альфа",0.5^(COUNTIF(Стимуляторы!D3:G3,"гемобуфер альфа")-1)*$D$17,0) -> 0 | V4: =IF(Стимуляторы!H3="гемобуфер альфа",0.5^(COUNTIF(Стимуляторы!D3:H3,"гемобуфер альфа")-1)*$D$17,0) -> 0 | W4: =IF(Стимуляторы!I3="гемобуфер альфа",0.5^(COUNTIF(Стимуляторы!D3:I3,"гемобуфер альфа")-1)*$D$17,0) -> 0 | X4: =IF(Стимуляторы!J3="гемобуфер альфа",0.5^(COUNTIF(Стимуляторы!D3:J3,"гемобуфер альфа")-1)*$D$17,0) -> 0 | Y4: =IF(Стимуляторы!K3="гемобуфер альфа",0.5^(COUNTIF(Стимуляторы!D3:K3,"гемобуфер альфа")-1)*$D$17,0) -> 0 | Z4: =IF(Стимуляторы!L3="гемобуфер альфа",0.5^(COUNTIF(Стимуляторы!D3:L3,"гемобуфер альфа")-1)*$D$17,0) -> 0 | AA4: =IF(Стимуляторы!M3="гемобуфер альфа",0.5^(COUNTIF(Стимуляторы!D3:M3,"гемобуфер альфа")-1)*$D$17,0) -> 0 | AB4: =COUNTIF(R4:AA4,">0") -> 0 | AC4: Сопр. эфф. | AD4: =IF(Стимуляторы!D3="гемобуфер альфа",0.5^(COUNTIF(Стимуляторы!$D$3,"гемобуфер альфа")-1)*$F$17,0) -> 0 | AE4: =IF(Стимуляторы!E3="гемобуфер альфа",0.5^(COUNTIF(Стимуляторы!$D$3:E3,"гемобуфер альфа")-1)*$F$17,0) -> 0 | AF4: =IF(Стимуляторы!F3="гемобуфер альфа",0.5^(COUNTIF(Стимуляторы!$D$3:F3,"гемобуфер альфа")-1)*$F$17,0) -> 0 | AG4: =IF(Стимуляторы!G3="гемобуфер альфа",0.5^(COUNTIF(Стимуляторы!$D$3:G3,"гемобуфер альфа")-1)*$F$17,0) -> 0 | AH4: =IF(Стимуляторы!H3="гемобуфер альфа",0.5^(COUNTIF(Стимуляторы!$D$3:H3,"гемобуфер альфа")-1)*$F$17,0) -> 0 | AI4: =IF(Стимуляторы!I3="гемобуфер альфа",0.5^(COUNTIF(Стимуляторы!$D$3:I3,"гемобуфер альфа")-1)*$F$17,0) -> 0 | AJ4: =IF(Стимуляторы!J3="гемобуфер альфа",0.5^(COUNTIF(Стимуляторы!$D$3:J3,"гемобуфер альфа")-1)*$F$17,0) -> 0 | AK4: =IF(Стимуляторы!K3="гемобуфер альфа",0.5^(COUNTIF(Стимуляторы!$D$3:K3,"гемобуфер альфа")-1)*$F$17,0) -> 0 | AL4: =IF(Стимуляторы!L3="гемобуфер альфа",0.5^(COUNTIF(Стимуляторы!$D$3:L3,"гемобуфер альфа")-1)*$F$17,0) -> 0 | AM4: =IF(Стимуляторы!M3="гемобуфер альфа",0.5^(COUNTIF(Стимуляторы!$D$3:M3,"гемобуфер альфа")-1)*$F$17,0) -> 0 | AN4: =COUNTIF(AD4:AM4,">0") -> 0
P5: Гемобуфер бета | Q5: Здоровье | R5: =IF(Стимуляторы!D3="гемобуфер бета",0.5^(COUNTIF(Стимуляторы!$D$3,"гемобуфер бета")+$AB$4-1)*$D$24,0) -> 0 | S5: =IF(Стимуляторы!E3="гемобуфер бета",0.5^(COUNTIF(Стимуляторы!$D$3:E3,"гемобуфер бета")+$AB$4-1)*$D$24,0) -> 0 | T5: =IF(Стимуляторы!F3="гемобуфер бета",0.5^(COUNTIF(Стимуляторы!$D$3:F3,"гемобуфер бета")+$AB$4-1)*$D$24,0) -> 0 | U5: =IF(Стимуляторы!G3="гемобуфер бета",0.5^(COUNTIF(Стимуляторы!$D$3:G3,"гемобуфер бета")+$AB$4-1)*$D$24,0) -> 0 | V5: =IF(Стимуляторы!H3="гемобуфер бета",0.5^(COUNTIF(Стимуляторы!$D$3:H3,"гемобуфер бета")+$AB$4-1)*$D$24,0) -> 0 | W5: =IF(Стимуляторы!I3="гемобуфер бета",0.5^(COUNTIF(Стимуляторы!$D$3:I3,"гемобуфер бета")+$AB$4-1)*$D$24,0) -> 0 | X5: =IF(Стимуляторы!J3="гемобуфер бета",0.5^(COUNTIF(Стимуляторы!$D$3:J3,"гемобуфер бета")+$AB$4-1)*$D$24,0) -> 0 | Y5: =IF(Стимуляторы!K3="гемобуфер бета",0.5^(COUNTIF(Стимуляторы!$D$3:K3,"гемобуфер бета")+$AB$4-1)*$D$24,0) -> 0 | Z5: =IF(Стимуляторы!L3="гемобуфер бета",0.5^(COUNTIF(Стимуляторы!$D$3:L3,"гемобуфер бета")+$AB$4-1)*$D$24,0) -> 0 | AA5: =IF(Стимуляторы!M3="гемобуфер бета",0.5^(COUNTIF(Стимуляторы!$D$3:M3,"гемобуфер бета")+$AB$4-1)*$D$24,0) -> 0 | AB5: 0 | AC5: Сопр. эфф. | AD5: =IF(Стимуляторы!D3="гемобуфер бета",0.5^(COUNTIF(Стимуляторы!$D$3,"гемобуфер бета")+$AN$4-1)*$F$24,0) -> 0 | AE5: =IF(Стимуляторы!E3="гемобуфер бета",0.5^(COUNTIF(Стимуляторы!$D$3:E3,"гемобуфер бета")+$AN$4-1)*$F$24,0) -> 0 | AF5: =IF(Стимуляторы!F3="гемобуфер бета",0.5^(COUNTIF(Стимуляторы!$D$3:F3,"гемобуфер бета")+$AN$4-1)*$F$24,0) -> 0 | AG5: =IF(Стимуляторы!G3="гемобуфер бета",0.5^(COUNTIF(Стимуляторы!$D$3:G3,"гемобуфер бета")+$AN$4-1)*$F$24,0) -> 0 | AH5: =IF(Стимуляторы!H3="гемобуфер бета",0.5^(COUNTIF(Стимуляторы!$D$3:H3,"гемобуфер бета")+$AN$4-1)*$F$24,0) -> 0 | AI5: =IF(Стимуляторы!I3="гемобуфер бета",0.5^(COUNTIF(Стимуляторы!$D$3:I3,"гемобуфер бета")+$AN$4-1)*$F$24,0) -> 0 | AJ5: =IF(Стимуляторы!J3="гемобуфер бета",0.5^(COUNTIF(Стимуляторы!$D$3:J3,"гемобуфер бета")+$AN$4-1)*$F$24,0) -> 0 | AK5: =IF(Стимуляторы!K3="гемобуфер бета",0.5^(COUNTIF(Стимуляторы!$D$3:K3,"гемобуфер бета")+$AN$4-1)*$F$24,0) -> 0 | AL5: =IF(Стимуляторы!L3="гемобуфер бета",0.5^(COUNTIF(Стимуляторы!$D$3:L3,"гемобуфер бета")+$AN$4-1)*$F$24,0) -> 0 | AM5: =IF(Стимуляторы!M3="гемобуфер бета",0.5^(COUNTIF(Стимуляторы!$D$3:M3,"гемобуфер бета")+$AN$4-1)*$F$24,0) -> 0 | AN5: =COUNTIF(AD5:AM5,">0") -> 0
P6: Гемобуфер Альфа М | Q6: Здоровье | R6: =IF(Стимуляторы!D3="гемобуфер альфа М",0.5^(COUNTIF(Стимуляторы!$D$3,"гемобуфер альфа М")+AB4+AB5-1)*$D$31,0) -> 0 | S6: =IF(Стимуляторы!E3="гемобуфер альфа М",0.5^(COUNTIF(Стимуляторы!$D$3:E3,"гемобуфер альфа М")+$AB$4+$AB$5-1)*$D$31,0) -> 0 | T6: =IF(Стимуляторы!F3="гемобуфер альфа М",0.5^(COUNTIF(Стимуляторы!$D$3:F3,"гемобуфер альфа М")+$AB$4+$AB$5-1)*$D$31,0) -> 0 | U6: =IF(Стимуляторы!G3="гемобуфер альфа М",0.5^(COUNTIF(Стимуляторы!$D$3:G3,"гемобуфер альфа М")+$AB$4+$AB$5-1)*$D$31,0) -> 0 | V6: =IF(Стимуляторы!H3="гемобуфер альфа М",0.5^(COUNTIF(Стимуляторы!$D$3:H3,"гемобуфер альфа М")+$AB$4+$AB$5-1)*$D$31,0) -> 0 | W6: =IF(Стимуляторы!I3="гемобуфер альфа М",0.5^(COUNTIF(Стимуляторы!$D$3:I3,"гемобуфер альфа М")+$AB$4+$AB$5-1)*$D$31,0) -> 0 | X6: =IF(Стимуляторы!J3="гемобуфер альфа М",0.5^(COUNTIF(Стимуляторы!$D$3:J3,"гемобуфер альфа М")+$AB$4+$AB$5-1)*$D$31,0) -> 0 | Y6: =IF(Стимуляторы!K3="гемобуфер альфа М",0.5^(COUNTIF(Стимуляторы!$D$3:K3,"гемобуфер альфа М")+$AB$4+$AB$5-1)*$D$31,0) -> 0 | Z6: =IF(Стимуляторы!L3="гемобуфер альфа М",0.5^(COUNTIF(Стимуляторы!$D$3:L3,"гемобуфер альфа М")+$AB$4+$AB$5-1)*$D$31,0) -> 0 | AA6: =IF(Стимуляторы!M3="гемобуфер альфа М",0.5^(COUNTIF(Стимуляторы!$D$3:M3,"гемобуфер альфа М")+$AB$4+$AB$5-1)*$D$31,0) -> 0 | AB6: =COUNTIF(R6:AA6,">0") -> 0 | AC6: Сопр. эфф. | AD6: =IF(Стимуляторы!D3="гемобуфер альфа М",0.5^(COUNTIF(Стимуляторы!$D$3,"гемобуфер альфа М")+AN4+AN5-1)*$F$31,0) -> 0 | AE6: =IF(Стимуляторы!E3="гемобуфер альфа М",0.5^(COUNTIF(Стимуляторы!$D$3:E3,"гемобуфер альфа М")+$AN$4+$AN$5-1)*$F$31,0) -> 0 | AF6: =IF(Стимуляторы!F3="гемобуфер альфа М",0.5^(COUNTIF(Стимуляторы!$D$3:F3,"гемобуфер альфа М")+$AN$4+$AN$5-1)*$F$31,0) -> 0 | AG6: =IF(Стимуляторы!G3="гемобуфер альфа М",0.5^(COUNTIF(Стимуляторы!$D$3:G3,"гемобуфер альфа М")+$AN$4+$AN$5-1)*$F$31,0) -> 0 | AH6: =IF(Стимуляторы!H3="гемобуфер альфа М",0.5^(COUNTIF(Стимуляторы!$D$3:H3,"гемобуфер альфа М")+$AN$4+$AN$5-1)*$F$31,0) -> 0 | AI6: =IF(Стимуляторы!I3="гемобуфер альфа М",0.5^(COUNTIF(Стимуляторы!$D$3:I3,"гемобуфер альфа М")+$AN$4+$AN$5-1)*$F$31,0) -> 0 | AJ6: =IF(Стимуляторы!J3="гемобуфер альфа М",0.5^(COUNTIF(Стимуляторы!$D$3:J3,"гемобуфер альфа М")+$AN$4+$AN$5-1)*$F$31,0) -> 0 | AK6: =IF(Стимуляторы!K3="гемобуфер альфа М",0.5^(COUNTIF(Стимуляторы!$D$3:K3,"гемобуфер альфа М")+$AN$4+$AN$5-1)*$F$31,0) -> 0 | AL6: =IF(Стимуляторы!L3="гемобуфер альфа М",0.5^(COUNTIF(Стимуляторы!$D$3:L3,"гемобуфер альфа М")+$AN$4+$AN$5-1)*$F$31,0) -> 0 | AM6: =IF(Стимуляторы!M3="гемобуфер альфа М",0.5^(COUNTIF(Стимуляторы!$D$3:M3,"гемобуфер альфа М")+$AN$4+$AN$5-1)*$F$31,0) -> 0 | AN6: 0
P7: Гемобуфер бета М | Q7: Здоровье | R7: =IF(Стимуляторы!$D$3="гемобуфер бета М",0.5^(COUNTIF(Стимуляторы!$D$3,"гемобуфер бета М")+$AB$4+$AB$5+$AB$6-1)*$D$38,0) -> 0 | S7: =IF(Стимуляторы!E3="гемобуфер бета М",0.5^(COUNTIF(Стимуляторы!$D$3:E3,"гемобуфер бета М")+$AB$4+$AB$5+$AB$6-1)*$D$38,0) -> 0 | T7: =IF(Стимуляторы!F3="гемобуфер бета М",0.5^(COUNTIF(Стимуляторы!$D$3:F3,"гемобуфер бета М")+$AB$4+$AB$5+$AB$6-1)*$D$38,0) -> 0 | U7: =IF(Стимуляторы!G3="гемобуфер бета М",0.5^(COUNTIF(Стимуляторы!$D$3:G3,"гемобуфер бета М")+$AB$4+$AB$5+$AB$6-1)*$D$38,0) -> 0 | V7: =IF(Стимуляторы!H3="гемобуфер бета М",0.5^(COUNTIF(Стимуляторы!$D$3:H3,"гемобуфер бета М")+$AB$4+$AB$5+$AB$6-1)*$D$38,0) -> 0 | W7: =IF(Стимуляторы!I3="гемобуфер бета М",0.5^(COUNTIF(Стимуляторы!$D$3:I3,"гемобуфер бета М")+$AB$4+$AB$5+$AB$6-1)*$D$38,0) -> 0 | X7: =IF(Стимуляторы!J3="гемобуфер бета М",0.5^(COUNTIF(Стимуляторы!$D$3:J3,"гемобуфер бета М")+$AB$4+$AB$5+$AB$6-1)*$D$38,0) -> 0 | Y7: =IF(Стимуляторы!K3="гемобуфер бета М",0.5^(COUNTIF(Стимуляторы!$D$3:K3,"гемобуфер бета М")+$AB$4+$AB$5+$AB$6-1)*$D$38,0) -> 0 | Z7: =IF(Стимуляторы!L3="гемобуфер бета М",0.5^(COUNTIF(Стимуляторы!$D$3:L3,"гемобуфер бета М")+$AB$4+$AB$5+$AB$6-1)*$D$38,0) -> 0 | AA7: =IF(Стимуляторы!M3="гемобуфер бета М",0.5^(COUNTIF(Стимуляторы!$D$3:M3,"гемобуфер бета М")+$AB$4+$AB$5+$AB$6-1)*$D$38,0) -> 0 | AB7: =COUNTIF(R7:AA7,">0") -> 0 | AC7: Сопр. эфф. | AD7: =IF(Стимуляторы!D3="гемобуфер бета М",0.5^(COUNTIF(Стимуляторы!$D$3,"гемобуфер бета М")+$AN$4+$AN$5+$AN$6-1)*$F$38,0) -> 0 | AE7: =IF(Стимуляторы!E3="гемобуфер бета М",0.5^(COUNTIF(Стимуляторы!$D$3:E3,"гемобуфер бета М")+$AN$4+$AN$5+$AN$6-1)*$F$38,0) -> 0 | AF7: =IF(Стимуляторы!F3="гемобуфер бета М",0.5^(COUNTIF(Стимуляторы!$D$3:F3,"гемобуфер бета М")+$AN$4+$AN$5+$AN$6-1)*$F$38,0) -> 0 | AG7: =IF(Стимуляторы!G3="гемобуфер бета М",0.5^(COUNTIF(Стимуляторы!$D$3:G3,"гемобуфер бета М")+$AN$4+$AN$5+$AN$6-1)*$F$38,0) -> 0 | AH7: =IF(Стимуляторы!H3="гемобуфер бета М",0.5^(COUNTIF(Стимуляторы!$D$3:H3,"гемобуфер бета М")+$AN$4+$AN$5+$AN$6-1)*$F$38,0) -> 0 | AI7: =IF(Стимуляторы!I3="гемобуфер бета М",0.5^(COUNTIF(Стимуляторы!$D$3:I3,"гемобуфер бета М")+$AN$4+$AN$5+$AN$6-1)*$F$38,0) -> 0 | AJ7: =IF(Стимуляторы!J3="гемобуфер бета М",0.5^(COUNTIF(Стимуляторы!$D$3:J3,"гемобуфер бета М")+$AN$4+$AN$5+$AN$6-1)*$F$38,0) -> 0 | AK7: =IF(Стимуляторы!K3="гемобуфер бета М",0.5^(COUNTIF(Стимуляторы!$D$3:K3,"гемобуфер бета М")+$AN$4+$AN$5+$AN$6-1)*$F$38,0) -> 0 | AL7: =IF(Стимуляторы!L3="гемобуфер бета М",0.5^(COUNTIF(Стимуляторы!$D$3:L3,"гемобуфер бета М")+$AN$4+$AN$5+$AN$6-1)*$F$38,0) -> 0 | AM7: =IF(Стимуляторы!M3="гемобуфер бета М",0.5^(COUNTIF(Стимуляторы!$D$3:M3,"гемобуфер бета М")+$AN$4+$AN$5+$AN$6-1)*$F$38,0) -> 0 | AN7: 0
R8: =IF(Стимуляторы!D8="гемобуфер альфа",0.5^(COUNTIF(Стимуляторы!D8,"гемобуфер альфа")+AB7-1)*$D$24,0) -> 0 | S8: =IF(Стимуляторы!E7="гемобуфер бета",0.5^(COUNTIF(Стимуляторы!D13:E13,"Здоровье")-1)*$D$24,0) -> 0 | T8: =IF(Стимуляторы!F8="гемобуфер альфа",0.5^(COUNTIF(Стимуляторы!D8:F9,"гемобуфер альфа")-1)*$D$17,0) -> 0 | U8: =IF(Стимуляторы!G8="гемобуфер альфа",0.5^(COUNTIF(Стимуляторы!D8:G9,"гемобуфер альфа")-1)*$D$17,0) -> 0 | V8: =IF(Стимуляторы!H8="гемобуфер альфа",0.5^(COUNTIF(Стимуляторы!D8:H9,"гемобуфер альфа")-1)*$D$17,0) -> 0 | W8: =IF(Стимуляторы!I8="гемобуфер альфа",0.5^(COUNTIF(Стимуляторы!D8:I9,"гемобуфер альфа")-1)*$D$17,0) -> 0 | X8: =IF(Стимуляторы!J8="гемобуфер альфа",0.5^(COUNTIF(Стимуляторы!D8:J9,"гемобуфер альфа")-1)*$D$17,0) -> 0 | Y8: =IF(Стимуляторы!K8="гемобуфер альфа",0.5^(COUNTIF(Стимуляторы!D8:K9,"гемобуфер альфа")-1)*$D$17,0) -> 0 | Z8: =IF(Стимуляторы!L8="гемобуфер альфа",0.5^(COUNTIF(Стимуляторы!D8:L9,"гемобуфер альфа")-1)*$D$17,0) -> 0 | AA8: =IF(Стимуляторы!M8="гемобуфер альфа",0.5^(COUNTIF(Стимуляторы!D8:M9,"гемобуфер альфа")-1)*$D$17,0) -> 0 | AB8: =COUNTIF(R8:AA8,">0") -> 0
P9: Моториум альфа | Q9: ОД | R9: =IF(Стимуляторы!$D$3="Моториум альфа",0.5^(COUNTIF(Стимуляторы!$D$3,"Моториум альфа")-1)*$D$18,0) -> 0 | S9: =IF(Стимуляторы!$E$3="Моториум альфа",0.5^(COUNTIF(Стимуляторы!$D$3:E3,"Моториум альфа")-1)*$D$18,0) -> 0 | T9: =IF(Стимуляторы!F3="Моториум альфа",0.5^(COUNTIF(Стимуляторы!$D$3:F3,"Моториум альфа")-1)*$D$18,0) -> 0 | U9: =IF(Стимуляторы!G3="Моториум альфа",0.5^(COUNTIF(Стимуляторы!$D$3:G3,"Моториум альфа")-1)*$D$18,0) -> 0 | V9: =IF(Стимуляторы!H3="Моториум альфа",0.5^(COUNTIF(Стимуляторы!$D$3:H3,"Моториум альфа")-1)*$D$18,0) -> 0 | W9: =IF(Стимуляторы!I3="Моториум альфа",0.5^(COUNTIF(Стимуляторы!$D$3:I3,"Моториум альфа")-1)*$D$18,0) -> 0 | X9: =IF(Стимуляторы!J3="Моториум альфа",0.5^(COUNTIF(Стимуляторы!$D$3:J3,"Моториум альфа")-1)*$D$18,0) -> 0 | Y9: =IF(Стимуляторы!K3="Моториум альфа",0.5^(COUNTIF(Стимуляторы!$D$3:K3,"Моториум альфа")-1)*$D$18,0) -> 0 | Z9: =IF(Стимуляторы!L3="Моториум альфа",0.5^(COUNTIF(Стимуляторы!$D$3:L3,"Моториум альфа")-1)*$D$18,0) -> 0 | AA9: =IF(Стимуляторы!M3="Моториум альфа",0.5^(COUNTIF(Стимуляторы!$D$3:M3,"Моториум альфа")-1)*$D$18,0) -> 0 | AB9: =COUNTIF(R9:AA9,">0") -> 0 | AN9: 0
P10: Моториум бета | Q10: ОД | R10: =IF(Стимуляторы!$D$3="Моториум бета",0.5^(COUNTIF(Стимуляторы!$D$3,"Моториум бета")-1)*$D$25,0) -> 0 | S10: =IF(Стимуляторы!E3="Моториум бета",0.5^(COUNTIF(Стимуляторы!$D$3:E3,"Моториум бета")+$AB$9-1)*$D$25,0) -> 0 | T10: =IF(Стимуляторы!F3="Моториум бета",0.5^(COUNTIF(Стимуляторы!$D$3:F3,"Моториум бета")+$AB$9-1)*$D$25,0) -> 0 | U10: =IF(Стимуляторы!G3="Моториум бета",0.5^(COUNTIF(Стимуляторы!$D$3:G3,"Моториум бета")+$AB$9-1)*$D$25,0) -> 0 | V10: =IF(Стимуляторы!H3="Моториум бета",0.5^(COUNTIF(Стимуляторы!$D$3:H3,"Моториум бета")+$AB$9-1)*$D$25,0) -> 0 | W10: =IF(Стимуляторы!I3="Моториум бета",0.5^(COUNTIF(Стимуляторы!$D$3:I3,"Моториум бета")+$AB$9-1)*$D$25,0) -> 0 | X10: =IF(Стимуляторы!J3="Моториум бета",0.5^(COUNTIF(Стимуляторы!$D$3:J3,"Моториум бета")+$AB$9-1)*$D$25,0) -> 0 | Y10: =IF(Стимуляторы!K3="Моториум бета",0.5^(COUNTIF(Стимуляторы!$D$3:K3,"Моториум бета")+$AB$9-1)*$D$25,0) -> 0 | Z10: =IF(Стимуляторы!L3="Моториум бета",0.5^(COUNTIF(Стимуляторы!$D$3:L3,"Моториум бета")+$AB$9-1)*$D$25,0) -> 0 | AA10: =IF(Стимуляторы!M3="Моториум бета",0.5^(COUNTIF(Стимуляторы!$D$3:M3,"Моториум бета")+$AB$9-1)*$D$25,0) -> 0 | AB10: =COUNTIF(R10:AA10,">0") -> 0 | AN10: 0
P11: Моториум альфа М | Q11: ОД | R11: =IF(Стимуляторы!D3="Моториум альфа М",0.5^(COUNTIF(Стимуляторы!$D$3,"Моториум альфа М")+AB10+AB9-1)*$D$32,0) -> 0 | S11: =IF(Стимуляторы!E3="Моториум альфа М",0.5^(COUNTIF(Стимуляторы!$D$3:E3,"Моториум альфа М")+$AB$9+$AB$10-1)*$D$32,0) -> 0 | T11: =IF(Стимуляторы!F3="Моториум альфа М",0.5^(COUNTIF(Стимуляторы!$D$3:F3,"Моториум альфа М")+$AB$9+$AB$10-1)*$D$32,0) -> 0 | U11: =IF(Стимуляторы!G3="Моториум альфа М",0.5^(COUNTIF(Стимуляторы!$D$3:G3,"Моториум альфа М")+$AB$9+$AB$10-1)*$D$32,0) -> 0 | V11: =IF(Стимуляторы!H3="Моториум альфа М",0.5^(COUNTIF(Стимуляторы!$D$3:H3,"Моториум альфа М")+$AB$9+$AB$10-1)*$D$32,0) -> 0 | W11: =IF(Стимуляторы!I3="Моториум альфа М",0.5^(COUNTIF(Стимуляторы!$D$3:I3,"Моториум альфа М")+$AB$9+$AB$10-1)*$D$32,0) -> 0 | X11: =IF(Стимуляторы!J3="Моториум альфа М",0.5^(COUNTIF(Стимуляторы!$D$3:J3,"Моториум альфа М")+$AB$9+$AB$10-1)*$D$32,0) -> 0 | Y11: =IF(Стимуляторы!K3="Моториум альфа М",0.5^(COUNTIF(Стимуляторы!$D$3:K3,"Моториум альфа М")+$AB$9+$AB$10-1)*$D$32,0) -> 0 | Z11: =IF(Стимуляторы!L3="Моториум альфа М",0.5^(COUNTIF(Стимуляторы!$D$3:L3,"Моториум альфа М")+$AB$9+$AB$10-1)*$D$32,0) -> 0 | AA11: =IF(Стимуляторы!M3="Моториум альфа М",0.5^(COUNTIF(Стимуляторы!$D$3:M3,"Моториум альфа М")+$AB$9+$AB$10-1)*$D$32,0) -> 0 | AB11: 0 | AN11: 0
P12: Моториум бета М | Q12: ОД | R12: =IF(Стимуляторы!$D$3="Моториум бета М",0.5^(COUNTIF(Стимуляторы!$D$3,"Моториум бета М")+AB9+AB10+AB11-1)*$D$39,0) -> 0 | S12: =IF(Стимуляторы!E3="Моториум бета М",0.5^(COUNTIF(Стимуляторы!$D$3:E3,"Моториум бета М")+$AB$9+$AB$10+$AB$11-1)*$D$39,0) -> 0 | T12: =IF(Стимуляторы!F3="Моториум бета М",0.5^(COUNTIF(Стимуляторы!$D$3:F3,"Моториум бета М")+$AB$9+$AB$10+$AB$11-1)*$D$39,0) -> 0 | U12: =IF(Стимуляторы!G3="Моториум бета М",0.5^(COUNTIF(Стимуляторы!$D$3:G3,"Моториум бета М")+$AB$9+$AB$10+$AB$11-1)*$D$39,0) -> 0 | V12: =IF(Стимуляторы!H3="Моториум бета М",0.5^(COUNTIF(Стимуляторы!$D$3:H3,"Моториум бета М")+$AB$9+$AB$10+$AB$11-1)*$D$39,0) -> 0 | W12: =IF(Стимуляторы!I3="Моториум бета М",0.5^(COUNTIF(Стимуляторы!$D$3:I3,"Моториум бета М")+$AB$9+$AB$10+$AB$11-1)*$D$39,0) -> 0 | X12: =IF(Стимуляторы!J3="Моториум бета М",0.5^(COUNTIF(Стимуляторы!$D$3:J3,"Моториум бета М")+$AB$9+$AB$10+$AB$11-1)*$D$39,0) -> 0 | Y12: =IF(Стимуляторы!K3="Моториум бета М",0.5^(COUNTIF(Стимуляторы!$D$3:K3,"Моториум бета М")+$AB$9+$AB$10+$AB$11-1)*$D$39,0) -> 0 | Z12: =IF(Стимуляторы!L3="Моториум бета М",0.5^(COUNTIF(Стимуляторы!$D$3:L3,"Моториум бета М")+$AB$9+$AB$10+$AB$11-1)*$D$39,0) -> 0 | AA12: =IF(Стимуляторы!M3="Моториум бета М",0.5^(COUNTIF(Стимуляторы!$D$3:M3,"Моториум бета М")+$AB$9+$AB$10+$AB$11-1)*$D$39,0) -> 0 | AB12: 0 | AN12: 0
R13: =IF(Стимуляторы!D13="гемобуфер альфа",0.5^(COUNTIF(Стимуляторы!D13,"гемобуфер альфа")+AB12-1)*$D$24,0) -> 0 | S13: =IF(Стимуляторы!E12="гемобуфер бета",0.5^(COUNTIF(Стимуляторы!D18:E18,"Здоровье")-1)*$D$24,0) -> 0 | T13: =IF(Стимуляторы!F13="гемобуфер альфа",0.5^(COUNTIF(Стимуляторы!D13:F14,"гемобуфер альфа")-1)*$D$17,0) -> 0 | U13: =IF(Стимуляторы!G13="гемобуфер альфа",0.5^(COUNTIF(Стимуляторы!D13:G14,"гемобуфер альфа")-1)*$D$17,0) -> 0 | V13: =IF(Стимуляторы!H13="гемобуфер альфа",0.5^(COUNTIF(Стимуляторы!D13:H14,"гемобуфер альфа")-1)*$D$17,0) -> 0 | W13: =IF(Стимуляторы!I13="гемобуфер альфа",0.5^(COUNTIF(Стимуляторы!D13:I14,"гемобуфер альфа")-1)*$D$17,0) -> 0 | X13: =IF(Стимуляторы!J13="гемобуфер альфа",0.5^(COUNTIF(Стимуляторы!D13:J14,"гемобуфер альфа")-1)*$D$17,0) -> 0 | Y13: =IF(Стимуляторы!K13="гемобуфер альфа",0.5^(COUNTIF(Стимуляторы!D13:K14,"гемобуфер альфа")-1)*$D$17,0) -> 0 | Z13: =IF(Стимуляторы!L13="гемобуфер альфа",0.5^(COUNTIF(Стимуляторы!D13:L14,"гемобуфер альфа")-1)*$D$17,0) -> 0 | AA13: =IF(Стимуляторы!M13="гемобуфер альфа",0.5^(COUNTIF(Стимуляторы!D13:M14,"гемобуфер альфа")-1)*$D$17,0) -> 0 | AB13: =COUNTIF(R13:AA13,">0") -> 0
A14: название | B14: Столбец2 | C14: Столбец3 | D14: базовое значение | E14: Столбец5 | F14: Столбец6 | G14: Столбец7 | H14: Столбец8 | I14: Столбец9 | J14: Столбец10 | K14: Столбец11 | L14: Столбец12 | M14: Столбец13 | N14: Столбец14 | P14: Перцептил альфа | Q14: Точность | R14: =IF(Стимуляторы!D3="Перцептил альфа",0.5^(COUNTIF(Стимуляторы!$D$3,"Перцептил альфа")-1)*$D$19,0) -> 0 | S14: =IF(Стимуляторы!E3="Перцептил альфа",0.5^(COUNTIF(Стимуляторы!$D$3:E3,"Перцептил альфа")-1)*$D$19,0) -> 0 | T14: =IF(Стимуляторы!F3="Перцептил альфа",0.5^(COUNTIF(Стимуляторы!$D$3:F3,"Перцептил альфа")-1)*$D$19,0) -> 0 | U14: =IF(Стимуляторы!G3="Перцептил альфа",0.5^(COUNTIF(Стимуляторы!$D$3:G3,"Перцептил альфа")-1)*$D$19,0) -> 0 | V14: =IF(Стимуляторы!H3="Перцептил альфа",0.5^(COUNTIF(Стимуляторы!$D$3:H3,"Перцептил альфа")-1)*$D$19,0) -> 0.1 | W14: =IF(Стимуляторы!I3="Перцептил альфа",0.5^(COUNTIF(Стимуляторы!$D$3:I3,"Перцептил альфа")-1)*$D$19,0) -> 0 | X14: =IF(Стимуляторы!J3="Перцептил альфа",0.5^(COUNTIF(Стимуляторы!$D$3:J3,"Перцептил альфа")-1)*$D$19,0) -> 0 | Y14: =IF(Стимуляторы!K3="Перцептил альфа",0.5^(COUNTIF(Стимуляторы!$D$3:K3,"Перцептил альфа")-1)*$D$19,0) -> 0 | Z14: =IF(Стимуляторы!L3="Перцептил альфа",0.5^(COUNTIF(Стимуляторы!$D$3:L3,"Перцептил альфа")-1)*$D$19,0) -> 0.05 | AA14: =IF(Стимуляторы!M3="Перцептил альфа",0.5^(COUNTIF(Стимуляторы!$D$3:M3,"Перцептил альфа")-1)*$D$19,0) -> 0 | AB14: 2 | AC14: Крит. Поп. | AD14: =IF(Стимуляторы!D3="Перцептил альфа",0.5^(COUNTIF(Стимуляторы!$D$3,"Перцептил альфа")-1)*$F$19,0) -> 0 | AE14: =IF(Стимуляторы!E3="Перцептил альфа",0.5^(COUNTIF(Стимуляторы!$D$3:E3,"Перцептил альфа")-1)*$F$19,0) -> 0 | AF14: =IF(Стимуляторы!F3="Перцептил альфа",0.5^(COUNTIF(Стимуляторы!$D$3:F3,"Перцептил альфа")-1)*$F$19,0) -> 0 | AG14: =IF(Стимуляторы!G3="Перцептил альфа",0.5^(COUNTIF(Стимуляторы!$D$3:G3,"Перцептил альфа")-1)*$F$19,0) -> 0 | AH14: =IF(Стимуляторы!H3="Перцептил альфа",0.5^(COUNTIF(Стимуляторы!$D$3:H3,"Перцептил альфа")-1)*$F$19,0) -> 0.1 | AI14: =IF(Стимуляторы!I3="Перцептил альфа",0.5^(COUNTIF(Стимуляторы!$D$3:I3,"Перцептил альфа")-1)*$F$19,0) -> 0 | AJ14: =IF(Стимуляторы!J3="Перцептил альфа",0.5^(COUNTIF(Стимуляторы!$D$3:J3,"Перцептил альфа")-1)*$F$19,0) -> 0 | AK14: =IF(Стимуляторы!K3="Перцептил альфа",0.5^(COUNTIF(Стимуляторы!$D$3:K3,"Перцептил альфа")-1)*$F$19,0) -> 0 | AL14: =IF(Стимуляторы!L3="Перцептил альфа",0.5^(COUNTIF(Стимуляторы!$D$3:L3,"Перцептил альфа")-1)*$F$19,0) -> 0.05 | AM14: =IF(Стимуляторы!M3="Перцептил альфа",0.5^(COUNTIF(Стимуляторы!$D$3:M3,"Перцептил альфа")-1)*$F$19,0) -> 0 | AN14: 2 | AO14: Эфф.боепр. | AP14: =IF(Стимуляторы!D3="Перцептил альфа",0.5^(COUNTIF(Стимуляторы!$D$3,"Перцептил альфа")-1)*$H$19,0) -> 0 | AQ14: =IF(Стимуляторы!E3="Перцептил альфа",0.5^(COUNTIF(Стимуляторы!$D$3:E3,"Перцептил альфа")-1)*$H$19,0) -> 0 | AR14: =IF(Стимуляторы!F3="Перцептил альфа",0.5^(COUNTIF(Стимуляторы!$D$3:F3,"Перцептил альфа")-1)*$H$19,0) -> 0 | AS14: =IF(Стимуляторы!G3="Перцептил альфа",0.5^(COUNTIF(Стимуляторы!$D$3:G3,"Перцептил альфа")-1)*$H$19,0) -> 0 | AT14: =IF(Стимуляторы!H3="Перцептил альфа",0.5^(COUNTIF(Стимуляторы!$D$3:H3,"Перцептил альфа")-1)*$H$19,0) -> 0.1 | AU14: =IF(Стимуляторы!I3="Перцептил альфа",0.5^(COUNTIF(Стимуляторы!$D$3:I3,"Перцептил альфа")-1)*$H$19,0) -> 0 | AV14: =IF(Стимуляторы!J3="Перцептил альфа",0.5^(COUNTIF(Стимуляторы!$D$3:J3,"Перцептил альфа")-1)*$H$19,0) -> 0 | AW14: =IF(Стимуляторы!K3="Перцептил альфа",0.5^(COUNTIF(Стимуляторы!$D$3:K3,"Перцептил альфа")-1)*$H$19,0) -> 0 | AX14: =IF(Стимуляторы!L3="Перцептил альфа",0.5^(COUNTIF(Стимуляторы!$D$3:L3,"Перцептил альфа")-1)*$H$19,0) -> 0.05 | AY14: =IF(Стимуляторы!M3="Перцептил альфа",0.5^(COUNTIF(Стимуляторы!$D$3:M3,"Перцептил альфа")-1)*$H$19,0) -> 0 | AZ14: =COUNTIF(AP14:AY14,">0") -> 2
A15: Выберите стимулятор | P15: Перцептил бета | Q15: Точность | R15: =IF(Стимуляторы!$D$3="Перцептил бета",0.5^(COUNTIF(Стимуляторы!$D$3,"Перцептил бета")+AB14-1)*$D$26,0) -> 0 | S15: =IF(Стимуляторы!E3="Перцептил бета",0.5^(COUNTIF(Стимуляторы!$D$3:E3,"Перцептил бета")+$AB$14-1)*$D$26,0) -> 0 | T15: =IF(Стимуляторы!F3="Перцептил бета",0.5^(COUNTIF(Стимуляторы!$D$3:F3,"Перцептил бета")+$AB$14-1)*$D$26,0) -> 0 | U15: =IF(Стимуляторы!G3="Перцептил бета",0.5^(COUNTIF(Стимуляторы!$D$3:G3,"Перцептил бета")+$AB$14-1)*$D$26,0) -> 0 | V15: =IF(Стимуляторы!H3="Перцептил бета",0.5^(COUNTIF(Стимуляторы!$D$3:H3,"Перцептил бета")+$AB$14-1)*$D$26,0) -> 0 | W15: =IF(Стимуляторы!I3="Перцептил бета",0.5^(COUNTIF(Стимуляторы!$D$3:I3,"Перцептил бета")+$AB$14-1)*$D$26,0) -> 0.03 | X15: =IF(Стимуляторы!J3="Перцептил бета",0.5^(COUNTIF(Стимуляторы!$D$3:J3,"Перцептил бета")+$AB$14-1)*$D$26,0) -> 0 | Y15: =IF(Стимуляторы!K3="Перцептил бета",0.5^(COUNTIF(Стимуляторы!$D$3:K3,"Перцептил бета")+$AB$14-1)*$D$26,0) -> 0 | Z15: =IF(Стимуляторы!L3="Перцептил бета",0.5^(COUNTIF(Стимуляторы!$D$3:L3,"Перцептил бета")+$AB$14-1)*$D$26,0) -> 0 | AA15: =IF(Стимуляторы!M3="Перцептил бета",0.5^(COUNTIF(Стимуляторы!$D$3:M3,"Перцептил бета")+$AB$14-1)*$D$26,0) -> 0.015 | AB15: 2 | AC15: Крит. Поп. | AD15: =IF(Стимуляторы!$D$3="Перцептил бета",0.5^(COUNTIF(Стимуляторы!$D$3,"Перцептил бета")+AN14-1)*$F$26,0) -> 0 | AE15: =IF(Стимуляторы!E3="Перцептил бета",0.5^(COUNTIF(Стимуляторы!$D$3:E3,"Перцептил бета")+$AN$14-1)*$F$26,0) -> 0 | AF15: =IF(Стимуляторы!F3="Перцептил бета",0.5^(COUNTIF(Стимуляторы!$D$3:F3,"Перцептил бета")+$AN$14-1)*$F$26,0) -> 0 | AG15: =IF(Стимуляторы!G3="Перцептил бета",0.5^(COUNTIF(Стимуляторы!$D$3:G3,"Перцептил бета")+$AN$14-1)*$F$26,0) -> 0 | AH15: =IF(Стимуляторы!H3="Перцептил бета",0.5^(COUNTIF(Стимуляторы!$D$3:H3,"Перцептил бета")+$AN$14-1)*$F$26,0) -> 0 | AI15: =IF(Стимуляторы!I3="Перцептил бета",0.5^(COUNTIF(Стимуляторы!$D$3:I3,"Перцептил бета")+$AN$14-1)*$F$26,0) -> 0.03 | AJ15: =IF(Стимуляторы!J3="Перцептил бета",0.5^(COUNTIF(Стимуляторы!$D$3:J3,"Перцептил бета")+$AN$14-1)*$F$26,0) -> 0 | AK15: =IF(Стимуляторы!K3="Перцептил бета",0.5^(COUNTIF(Стимуляторы!$D$3:K3,"Перцептил бета")+$AN$14-1)*$F$26,0) -> 0 | AL15: =IF(Стимуляторы!L3="Перцептил бета",0.5^(COUNTIF(Стимуляторы!$D$3:L3,"Перцептил бета")+$AN$14-1)*$F$26,0) -> 0 | AM15: =IF(Стимуляторы!M3="Перцептил бета",0.5^(COUNTIF(Стимуляторы!$D$3:M3,"Перцептил бета")+$AN$14-1)*$F$26,0) -> 0.015 | AN15: 2 | AO15: Эфф.боепр. | AP15: =IF(Стимуляторы!$D$3="Перцептил бета",0.5^(COUNTIF(Стимуляторы!$D$3,"Перцептил бета")+AZ14-1)*$H$26,0) -> 0 | AQ15: =IF(Стимуляторы!E3="Перцептил бета",0.5^(COUNTIF(Стимуляторы!$D$3:E3,"Перцептил бета")+$AZ$14-1)*$H$26,0) -> 0 | AR15: =IF(Стимуляторы!F3="Перцептил бета",0.5^(COUNTIF(Стимуляторы!$D$3:F3,"Перцептил бета")+$AZ$14-1)*$H$26,0) -> 0 | AS15: =IF(Стимуляторы!G3="Перцептил бета",0.5^(COUNTIF(Стимуляторы!$D$3:G3,"Перцептил бета")+$AZ$14-1)*$H$26,0) -> 0 | AT15: =IF(Стимуляторы!H3="Перцептил бета",0.5^(COUNTIF(Стимуляторы!$D$3:H3,"Перцептил бета")+$AZ$14-1)*$H$26,0) -> 0 | AU15: =IF(Стимуляторы!I3="Перцептил бета",0.5^(COUNTIF(Стимуляторы!$D$3:I3,"Перцептил бета")+$AZ$14-1)*$H$26,0) -> 0.03 | AV15: =IF(Стимуляторы!J3="Перцептил бета",0.5^(COUNTIF(Стимуляторы!$D$3:J3,"Перцептил бета")+$AZ$14-1)*$H$26,0) -> 0 | AW15: =IF(Стимуляторы!K3="Перцептил бета",0.5^(COUNTIF(Стимуляторы!$D$3:K3,"Перцептил бета")+$AZ$14-1)*$H$26,0) -> 0 | AX15: =IF(Стимуляторы!L3="Перцептил бета",0.5^(COUNTIF(Стимуляторы!$D$3:L3,"Перцептил бета")+$AZ$14-1)*$H$26,0) -> 0 | AY15: =IF(Стимуляторы!M3="Перцептил бета",0.5^(COUNTIF(Стимуляторы!$D$3:M3,"Перцептил бета")+$AZ$14-1)*$H$26,0) -> 0.015 | AZ15: =COUNTIF(AP15:AY15,">0") -> 2
P16: Перцептил альфа М | Q16: Точность | R16: =IF(Стимуляторы!D3="Перцептил альфа М",0.5^(COUNTIF(Стимуляторы!$D$3,"Перцептил альфа М")+AB14+AB15-1)*$D$33,0) -> 0 | S16: =IF(Стимуляторы!E3="Перцептил альфа М",0.5^(COUNTIF(Стимуляторы!$D$3:E3,"Перцептил альфа М")+$AB$14+$AB$15-1)*$D$33,0) -> 0 | T16: =IF(Стимуляторы!F3="Перцептил альфа М",0.5^(COUNTIF(Стимуляторы!$D$3:F3,"Перцептил альфа М")+$AB$14+$AB$15-1)*$D$33,0) -> 0.0075 | U16: =IF(Стимуляторы!G3="Перцептил альфа М",0.5^(COUNTIF(Стимуляторы!$D$3:G3,"Перцептил альфа М")+$AB$14+$AB$15-1)*$D$33,0) -> 0 | V16: =IF(Стимуляторы!H3="Перцептил альфа М",0.5^(COUNTIF(Стимуляторы!$D$3:H3,"Перцептил альфа М")+$AB$14+$AB$15-1)*$D$33,0) -> 0 | W16: =IF(Стимуляторы!I3="Перцептил альфа М",0.5^(COUNTIF(Стимуляторы!$D$3:I3,"Перцептил альфа М")+$AB$14+$AB$15-1)*$D$33,0) -> 0 | X16: =IF(Стимуляторы!J3="Перцептил альфа М",0.5^(COUNTIF(Стимуляторы!$D$3:J3,"Перцептил альфа М")+$AB$14+$AB$15-1)*$D$33,0) -> 0.00375 | Y16: =IF(Стимуляторы!K3="Перцептил альфа М",0.5^(COUNTIF(Стимуляторы!$D$3:K3,"Перцептил альфа М")+$AB$14+$AB$15-1)*$D$33,0) -> 0 | Z16: =IF(Стимуляторы!L3="Перцептил альфа М",0.5^(COUNTIF(Стимуляторы!$D$3:L3,"Перцептил альфа М")+$AB$14+$AB$15-1)*$D$33,0) -> 0 | AA16: =IF(Стимуляторы!M3="Перцептил альфа М",0.5^(COUNTIF(Стимуляторы!$D$3:M3,"Перцептил альфа М")+$AB$14+$AB$15-1)*$D$33,0) -> 0 | AB16: 2 | AC16: Крит. Поп. | AD16: =IF(Стимуляторы!D3="Перцептил альфа М",0.5^(COUNTIF(Стимуляторы!$D$3,"Перцептил альфа М")+AN14+AN15-1)*$F$33,0) -> 0 | AE16: =IF(Стимуляторы!E3="Перцептил альфа М",0.5^(COUNTIF(Стимуляторы!$D$3:E3,"Перцептил альфа М")+$AN$14+$AN$15-1)*$F$33,0) -> 0 | AF16: =IF(Стимуляторы!F3="Перцептил альфа М",0.5^(COUNTIF(Стимуляторы!$D$3:F3,"Перцептил альфа М")+$AN$14+$AN$15-1)*$F$33,0) -> 0.0075 | AG16: =IF(Стимуляторы!G3="Перцептил альфа М",0.5^(COUNTIF(Стимуляторы!$D$3:G3,"Перцептил альфа М")+$AN$14+$AN$15-1)*$F$33,0) -> 0 | AH16: =IF(Стимуляторы!H3="Перцептил альфа М",0.5^(COUNTIF(Стимуляторы!$D$3:H3,"Перцептил альфа М")+$AN$14+$AN$15-1)*$F$33,0) -> 0 | AI16: =IF(Стимуляторы!I3="Перцептил альфа М",0.5^(COUNTIF(Стимуляторы!$D$3:I3,"Перцептил альфа М")+$AN$14+$AN$15-1)*$F$33,0) -> 0 | AJ16: =IF(Стимуляторы!J3="Перцептил альфа М",0.5^(COUNTIF(Стимуляторы!$D$3:J3,"Перцептил альфа М")+$AN$14+$AN$15-1)*$F$33,0) -> 0.00375 | AK16: =IF(Стимуляторы!K3="Перцептил альфа М",0.5^(COUNTIF(Стимуляторы!$D$3:K3,"Перцептил альфа М")+$AN$14+$AN$15-1)*$F$33,0) -> 0 | AL16: =IF(Стимуляторы!L3="Перцептил альфа М",0.5^(COUNTIF(Стимуляторы!$D$3:L3,"Перцептил альфа М")+$AN$14+$AN$15-1)*$F$33,0) -> 0 | AM16: =IF(Стимуляторы!M3="Перцептил альфа М",0.5^(COUNTIF(Стимуляторы!$D$3:M3,"Перцептил альфа М")+$AN$14+$AN$15-1)*$F$33,0) -> 0 | AN16: 2 | AO16: Эфф.боепр. | AP16: =IF(Стимуляторы!D3="Перцептил альфа М",0.5^(COUNTIF(Стимуляторы!$D$3,"Перцептил альфа М")+AZ14+AZ15-1)*$H$33,0) -> 0 | AQ16: =IF(Стимуляторы!E3="Перцептил альфа М",0.5^(COUNTIF(Стимуляторы!$D$3:E3,"Перцептил альфа М")+$AZ$14+$AZ$15-1)*$H$33,0) -> 0 | AR16: =IF(Стимуляторы!F3="Перцептил альфа М",0.5^(COUNTIF(Стимуляторы!$D$3:F3,"Перцептил альфа М")+$AZ$14+$AZ$15-1)*$H$33,0) -> 0.0075 | AS16: =IF(Стимуляторы!G3="Перцептил альфа М",0.5^(COUNTIF(Стимуляторы!$D$3:G3,"Перцептил альфа М")+$AZ$14+$AZ$15-1)*$H$33,0) -> 0 | AT16: =IF(Стимуляторы!H3="Перцептил альфа М",0.5^(COUNTIF(Стимуляторы!$D$3:H3,"Перцептил альфа М")+$AZ$14+$AZ$15-1)*$H$33,0) -> 0 | AU16: =IF(Стимуляторы!I3="Перцептил альфа М",0.5^(COUNTIF(Стимуляторы!$D$3:I3,"Перцептил альфа М")+$AZ$14+$AZ$15-1)*$H$33,0) -> 0 | AV16: =IF(Стимуляторы!J3="Перцептил альфа М",0.5^(COUNTIF(Стимуляторы!$D$3:J3,"Перцептил альфа М")+$AZ$14+$AZ$15-1)*$H$33,0) -> 0.00375 | AW16: =IF(Стимуляторы!K3="Перцептил альфа М",0.5^(COUNTIF(Стимуляторы!$D$3:K3,"Перцептил альфа М")+$AZ$14+$AZ$15-1)*$H$33,0) -> 0 | AX16: =IF(Стимуляторы!L3="Перцептил альфа М",0.5^(COUNTIF(Стимуляторы!$D$3:L3,"Перцептил альфа М")+$AZ$14+$AZ$15-1)*$H$33,0) -> 0 | AY16: =IF(Стимуляторы!M3="Перцептил альфа М",0.5^(COUNTIF(Стимуляторы!$D$3:M3,"Перцептил альфа М")+$AZ$14+$AZ$15-1)*$H$33,0) -> 0 | AZ16: 2
A17: Гемобуфер Альфа | C17: Здоровье | D17: 0.16 | E17: Сопр. эфф. | F17: 25 | M17: токсичность | N17: 5 | P17: Перцептил бета М | Q17: Точность | R17: =IF(Стимуляторы!$D$3="Перцептил бета М",0.5^(COUNTIF(Стимуляторы!$D$3,"Перцептил бета М")+AB14+AB15+AB16-1)*$D$40,0) -> 0 | S17: =IF(Стимуляторы!E3="Перцептил бета М",0.5^(COUNTIF(Стимуляторы!$D$3:E3,"Перцептил бета М")+$AB$14+$AB$15+$AB$16-1)*$D$40,0) -> 0.0021875 | T17: =IF(Стимуляторы!F3="Перцептил бета М",0.5^(COUNTIF(Стимуляторы!$D$3:F3,"Перцептил бета М")+$AB$14+$AB$15+$AB$16-1)*$D$40,0) -> 0 | U17: =IF(Стимуляторы!G3="Перцептил бета М",0.5^(COUNTIF(Стимуляторы!$D$3:G3,"Перцептил бета М")+$AB$14+$AB$15+$AB$16-1)*$D$40,0) -> 0.00109375 | V17: =IF(Стимуляторы!H3="Перцептил бета М",0.5^(COUNTIF(Стимуляторы!$D$3:H3,"Перцептил бета М")+$AB$14+$AB$15+$AB$16-1)*$D$40,0) -> 0 | W17: =IF(Стимуляторы!I3="Перцептил бета М",0.5^(COUNTIF(Стимуляторы!$D$3:I3,"Перцептил бета М")+$AB$14+$AB$15+$AB$16-1)*$D$40,0) -> 0 | X17: =IF(Стимуляторы!J3="Перцептил бета М",0.5^(COUNTIF(Стимуляторы!$D$3:J3,"Перцептил бета М")+$AB$14+$AB$15+$AB$16-1)*$D$40,0) -> 0 | Y17: =IF(Стимуляторы!K3="Перцептил бета М",0.5^(COUNTIF(Стимуляторы!$D$3:K3,"Перцептил бета М")+$AB$14+$AB$15+$AB$16-1)*$D$40,0) -> 0.000546875 | Z17: =IF(Стимуляторы!L3="Перцептил бета М",0.5^(COUNTIF(Стимуляторы!$D$3:L3,"Перцептил бета М")+$AB$14+$AB$15+$AB$16-1)*$D$40,0) -> 0 | AA17: =IF(Стимуляторы!M3="Перцептил бета М",0.5^(COUNTIF(Стимуляторы!$D$3:M3,"Перцептил бета М")+$AB$14+$AB$15+$AB$16-1)*$D$40,0) -> 0 | AB17: 3 | AC17: Крит. Поп. | AD17: =IF(Стимуляторы!$D$3="Перцептил бета М",0.5^(COUNTIF(Стимуляторы!$D$3,"Перцептил бета М")+AN14+AN15+AN16-1)*$F$40,0) -> 0 | AE17: =IF(Стимуляторы!E3="Перцептил бета М",0.5^(COUNTIF(Стимуляторы!$D$3:E3,"Перцептил бета М")+$AN$14+$AN$15+$AN$16-1)*$F$40,0) -> 0.0021875 | AF17: =IF(Стимуляторы!F3="Перцептил бета М",0.5^(COUNTIF(Стимуляторы!$D$3:F3,"Перцептил бета М")+$AN$14+$AN$15+$AN$16-1)*$F$40,0) -> 0 | AG17: =IF(Стимуляторы!G3="Перцептил бета М",0.5^(COUNTIF(Стимуляторы!$D$3:G3,"Перцептил бета М")+$AN$14+$AN$15+$AN$16-1)*$F$40,0) -> 0.00109375 | AH17: =IF(Стимуляторы!H3="Перцептил бета М",0.5^(COUNTIF(Стимуляторы!$D$3:H3,"Перцептил бета М")+$AN$14+$AN$15+$AN$16-1)*$F$40,0) -> 0 | AI17: =IF(Стимуляторы!I3="Перцептил бета М",0.5^(COUNTIF(Стимуляторы!$D$3:I3,"Перцептил бета М")+$AN$14+$AN$15+$AN$16-1)*$F$40,0) -> 0 | AJ17: =IF(Стимуляторы!J3="Перцептил бета М",0.5^(COUNTIF(Стимуляторы!$D$3:J3,"Перцептил бета М")+$AN$14+$AN$15+$AN$16-1)*$F$40,0) -> 0 | AK17: =IF(Стимуляторы!K3="Перцептил бета М",0.5^(COUNTIF(Стимуляторы!$D$3:K3,"Перцептил бета М")+$AN$14+$AN$15+$AN$16-1)*$F$40,0) -> 0.000546875 | AL17: =IF(Стимуляторы!L3="Перцептил бета М",0.5^(COUNTIF(Стимуляторы!$D$3:L3,"Перцептил бета М")+$AN$14+$AN$15+$AN$16-1)*$F$40,0) -> 0 | AM17: =IF(Стимуляторы!M3="Перцептил бета М",0.5^(COUNTIF(Стимуляторы!$D$3:M3,"Перцептил бета М")+$AN$14+$AN$15+$AN$16-1)*$F$40,0) -> 0 | AN17: 3 | AO17: Эфф.боепр. | AP17: =IF(Стимуляторы!$D$3="Перцептил бета М",0.5^(COUNTIF(Стимуляторы!$D$3,"Перцептил бета М")+AZ14+AZ15+AZ16-1)*$H$40,0) -> 0 | AQ17: =IF(Стимуляторы!E3="Перцептил бета М",0.5^(COUNTIF(Стимуляторы!$D$3:E3,"Перцептил бета М")+$AZ$14+$AZ$15+$AZ$16-1)*$H$40,0) -> 0.0021875 | AR17: =IF(Стимуляторы!F3="Перцептил бета М",0.5^(COUNTIF(Стимуляторы!$D$3:F3,"Перцептил бета М")+$AZ$14+$AZ$15+$AZ$16-1)*$H$40,0) -> 0 | AS17: =IF(Стимуляторы!G3="Перцептил бета М",0.5^(COUNTIF(Стимуляторы!$D$3:G3,"Перцептил бета М")+$AZ$14+$AZ$15+$AZ$16-1)*$H$40,0) -> 0.00109375 | AT17: =IF(Стимуляторы!H3="Перцептил бета М",0.5^(COUNTIF(Стимуляторы!$D$3:H3,"Перцептил бета М")+$AZ$14+$AZ$15+$AZ$16-1)*$H$40,0) -> 0 | AU17: =IF(Стимуляторы!I3="Перцептил бета М",0.5^(COUNTIF(Стимуляторы!$D$3:I3,"Перцептил бета М")+$AZ$14+$AZ$15+$AZ$16-1)*$H$40,0) -> 0 | AV17: =IF(Стимуляторы!J3="Перцептил бета М",0.5^(COUNTIF(Стимуляторы!$D$3:J3,"Перцептил бета М")+$AZ$14+$AZ$15+$AZ$16-1)*$H$40,0) -> 0 | AW17: =IF(Стимуляторы!K3="Перцептил бета М",0.5^(COUNTIF(Стимуляторы!$D$3:K3,"Перцептил бета М")+$AZ$14+$AZ$15+$AZ$16-1)*$H$40,0) -> 0.000546875 | AX17: =IF(Стимуляторы!L3="Перцептил бета М",0.5^(COUNTIF(Стимуляторы!$D$3:L3,"Перцептил бета М")+$AZ$14+$AZ$15+$AZ$16-1)*$H$40,0) -> 0 | AY17: =IF(Стимуляторы!M3="Перцептил бета М",0.5^(COUNTIF(Стимуляторы!$D$3:M3,"Перцептил бета М")+$AZ$14+$AZ$15+$AZ$16-1)*$H$40,0) -> 0 | AZ17: 3
A18: Моториум альфа | C18: ОД | D18: 0.1 | M18: токсичность | N18: 5 | R18: =IF(Стимуляторы!D18="гемобуфер альфа",0.5^(COUNTIF(Стимуляторы!D18,"гемобуфер альфа")+AB17-1)*$D$24,0) -> 0 | S18: =IF(Стимуляторы!E17="гемобуфер бета",0.5^(COUNTIF(Стимуляторы!D23:E23,"Здоровье")-1)*$D$24,0) -> 0 | T18: =IF(Стимуляторы!F18="гемобуфер альфа",0.5^(COUNTIF(Стимуляторы!D18:F19,"гемобуфер альфа")-1)*$D$17,0) -> 0 | U18: =IF(Стимуляторы!G18="гемобуфер альфа",0.5^(COUNTIF(Стимуляторы!D18:G19,"гемобуфер альфа")-1)*$D$17,0) -> 0 | V18: =IF(Стимуляторы!H18="гемобуфер альфа",0.5^(COUNTIF(Стимуляторы!D18:H19,"гемобуфер альфа")-1)*$D$17,0) -> 0 | W18: =IF(Стимуляторы!I18="гемобуфер альфа",0.5^(COUNTIF(Стимуляторы!D18:I19,"гемобуфер альфа")-1)*$D$17,0) -> 0 | X18: =IF(Стимуляторы!J18="гемобуфер альфа",0.5^(COUNTIF(Стимуляторы!D18:J19,"гемобуфер альфа")-1)*$D$17,0) -> 0 | Y18: =IF(Стимуляторы!K18="гемобуфер альфа",0.5^(COUNTIF(Стимуляторы!D18:K19,"гемобуфер альфа")-1)*$D$17,0) -> 0 | Z18: =IF(Стимуляторы!L18="гемобуфер альфа",0.5^(COUNTIF(Стимуляторы!D18:L19,"гемобуфер альфа")-1)*$D$17,0) -> 0 | AA18: =IF(Стимуляторы!M18="гемобуфер альфа",0.5^(COUNTIF(Стимуляторы!D18:M19,"гемобуфер альфа")-1)*$D$17,0) -> 0 | AB18: =COUNTIF(R18:AA18,">0") -> 0
A19: Перцептил альфа | C19: Точность | D19: 0.1 | E19: Крит. поп. | F19: 0.1 | G19: Эфф.боепр. | H19: 0.1 | M19: токсичность | N19: 5 | P19: Рекуперант альфа | Q19: регенирация | R19: =IF(Стимуляторы!D3="Рекуперант альфа",0.5^(COUNTIF(Стимуляторы!$D$3,"Рекуперант альфа")-1)*$D$20,0) -> 0 | S19: =IF(Стимуляторы!E3="Рекуперант альфа",0.5^(COUNTIF(Стимуляторы!$D$3:E3,"Рекуперант альфа")-1)*$D$20,0) -> 0 | T19: =IF(Стимуляторы!F3="Рекуперант альфа",0.5^(COUNTIF(Стимуляторы!$D$3:F3,"Рекуперант альфа")-1)*$D$20,0) -> 0 | U19: =IF(Стимуляторы!G3="Рекуперант альфа",0.5^(COUNTIF(Стимуляторы!$D$3:G3,"Рекуперант альфа")-1)*$D$20,0) -> 0 | V19: =IF(Стимуляторы!H3="Рекуперант альфа",0.5^(COUNTIF(Стимуляторы!$D$3:H3,"Рекуперант альфа")-1)*$D$20,0) -> 0 | W19: =IF(Стимуляторы!I3="Рекуперант альфа",0.5^(COUNTIF(Стимуляторы!$D$3:I3,"Рекуперант альфа")-1)*$D$20,0) -> 0 | X19: =IF(Стимуляторы!J3="Рекуперант альфа",0.5^(COUNTIF(Стимуляторы!$D$3:J3,"Рекуперант альфа")-1)*$D$20,0) -> 0 | Y19: =IF(Стимуляторы!K3="Рекуперант альфа",0.5^(COUNTIF(Стимуляторы!$D$3:K3,"Рекуперант альфа")-1)*$D$20,0) -> 0 | Z19: =IF(Стимуляторы!L3="Рекуперант альфа",0.5^(COUNTIF(Стимуляторы!$D$3:L3,"Рекуперант альфа")-1)*$D$20,0) -> 0 | AA19: =IF(Стимуляторы!M3="Рекуперант альфа",0.5^(COUNTIF(Стимуляторы!$D$3:M3,"Рекуперант альфа")-1)*$D$20,0) -> 0 | AB19: 0 | AC19: Вост. эфф. | AD19: =IF(Стимуляторы!D3="Рекуперант альфа",0.5^(COUNTIF(Стимуляторы!$D$3,"Рекуперант альфа")-1)*$F$20,0) -> 0 | AE19: =IF(Стимуляторы!E3="Рекуперант альфа",0.5^(COUNTIF(Стимуляторы!$D$3:E3,"Рекуперант альфа")-1)*$F$20,0) -> 0 | AF19: =IF(Стимуляторы!F3="Рекуперант альфа",0.5^(COUNTIF(Стимуляторы!$D$3:F3,"Рекуперант альфа")-1)*$F$20,0) -> 0 | AG19: =IF(Стимуляторы!G3="Рекуперант альфа",0.5^(COUNTIF(Стимуляторы!$D$3:G3,"Рекуперант альфа")-1)*$F$20,0) -> 0 | AH19: =IF(Стимуляторы!H3="Рекуперант альфа",0.5^(COUNTIF(Стимуляторы!$D$3:H3,"Рекуперант альфа")-1)*$F$20,0) -> 0 | AI19: =IF(Стимуляторы!I3="Рекуперант альфа",0.5^(COUNTIF(Стимуляторы!$D$3:I3,"Рекуперант альфа")-1)*$F$20,0) -> 0 | AJ19: =IF(Стимуляторы!J3="Рекуперант альфа",0.5^(COUNTIF(Стимуляторы!$D$3:J3,"Рекуперант альфа")-1)*$F$20,0) -> 0 | AK19: =IF(Стимуляторы!K3="Рекуперант альфа",0.5^(COUNTIF(Стимуляторы!$D$3:K3,"Рекуперант альфа")-1)*$F$20,0) -> 0 | AL19: =IF(Стимуляторы!L3="Рекуперант альфа",0.5^(COUNTIF(Стимуляторы!$D$3:L3,"Рекуперант альфа")-1)*$F$20,0) -> 0 | AM19: =IF(Стимуляторы!M3="Рекуперант альфа",0.5^(COUNTIF(Стимуляторы!$D$3:M3,"Рекуперант альфа")-1)*$F$20,0) -> 0 | AN19: =COUNTIF(AD19:AM19,">0") -> 0
A20: Рекуперант альфа | C20: Регенирация | D20: =9.9% -> 0.099 | E20: Вост. эфф. | F20: 7 | M20: токсичность | N20: 5 | P20: Рекуперант бета | Q20: регенирация | R20: =IF(Стимуляторы!$D$3="Рекуперант бета",0.5^(COUNTIF(Стимуляторы!$D$3,"Рекуперант бета")+AB19-1)*$D$27,0) -> 0 | S20: =IF(Стимуляторы!E3="Рекуперант бета",0.5^(COUNTIF(Стимуляторы!$D$3:E3,"Рекуперант бета")+$AB$19-1)*$D$27,0) -> 0 | T20: =IF(Стимуляторы!F3="Рекуперант бета",0.5^(COUNTIF(Стимуляторы!$D$3:F3,"Рекуперант бета")+$AB$19-1)*$D$27,0) -> 0 | U20: =IF(Стимуляторы!G3="Рекуперант бета",0.5^(COUNTIF(Стимуляторы!$D$3:G3,"Рекуперант бета")+$AB$19-1)*$D$27,0) -> 0 | V20: =IF(Стимуляторы!H3="Рекуперант бета",0.5^(COUNTIF(Стимуляторы!$D$3:H3,"Рекуперант бета")+$AB$19-1)*$D$27,0) -> 0 | W20: =IF(Стимуляторы!I3="Рекуперант бета",0.5^(COUNTIF(Стимуляторы!$D$3:I3,"Рекуперант бета")+$AB$19-1)*$D$27,0) -> 0 | X20: =IF(Стимуляторы!J3="Рекуперант бета",0.5^(COUNTIF(Стимуляторы!$D$3:J3,"Рекуперант бета")+$AB$19-1)*$D$27,0) -> 0 | Y20: =IF(Стимуляторы!K3="Рекуперант бета",0.5^(COUNTIF(Стимуляторы!$D$3:K3,"Рекуперант бета")+$AB$19-1)*$D$27,0) -> 0 | Z20: =IF(Стимуляторы!L3="Рекуперант бета",0.5^(COUNTIF(Стимуляторы!$D$3:L3,"Рекуперант бета")+$AB$19-1)*$D$27,0) -> 0 | AA20: =IF(Стимуляторы!M3="Рекуперант бета",0.5^(COUNTIF(Стимуляторы!$D$3:M3,"Рекуперант бета")+$AB$19-1)*$D$27,0) -> 0 | AB20: 0 | AC20: Вост. эфф. | AD20: =IF(Стимуляторы!$D$3="Рекуперант бета",0.5^(COUNTIF(Стимуляторы!$D$3,"Рекуперант бета")+AN19-1)*$F$27,0) -> 0 | AE20: =IF(Стимуляторы!E3="Рекуперант бета",0.5^(COUNTIF(Стимуляторы!$D$3:E3,"Рекуперант бета")+$AN$19-1)*$F$27,0) -> 0 | AF20: =IF(Стимуляторы!F3="Рекуперант бета",0.5^(COUNTIF(Стимуляторы!$D$3:F3,"Рекуперант бета")+$AN$19-1)*$F$27,0) -> 0 | AG20: =IF(Стимуляторы!G3="Рекуперант бета",0.5^(COUNTIF(Стимуляторы!$D$3:G3,"Рекуперант бета")+$AN$19-1)*$F$27,0) -> 0 | AH20: =IF(Стимуляторы!H3="Рекуперант бета",0.5^(COUNTIF(Стимуляторы!$D$3:H3,"Рекуперант бета")+$AN$19-1)*$F$27,0) -> 0 | AI20: =IF(Стимуляторы!I3="Рекуперант бета",0.5^(COUNTIF(Стимуляторы!$D$3:I3,"Рекуперант бета")+$AN$19-1)*$F$27,0) -> 0 | AJ20: =IF(Стимуляторы!J3="Рекуперант бета",0.5^(COUNTIF(Стимуляторы!$D$3:J3,"Рекуперант бета")+$AN$19-1)*$F$27,0) -> 0 | AK20: =IF(Стимуляторы!K3="Рекуперант бета",0.5^(COUNTIF(Стимуляторы!$D$3:K3,"Рекуперант бета")+$AN$19-1)*$F$27,0) -> 0 | AL20: =IF(Стимуляторы!L3="Рекуперант бета",0.5^(COUNTIF(Стимуляторы!$D$3:L3,"Рекуперант бета")+$AN$19-1)*$F$27,0) -> 0 | AM20: =IF(Стимуляторы!M3="Рекуперант бета",0.5^(COUNTIF(Стимуляторы!$D$3:M3,"Рекуперант бета")+$AN$19-1)*$F$27,0) -> 0 | AN20: =COUNTIF(AD20:AM20,">0") -> 0
A21: Репульсин альфа | C21: Сниж. урона | D21: 0.05 | E21: Крит.защита | F21: 12 | M21: токсичность | N21: 5 | P21: Рекуперант альфа М | Q21: регенирация | R21: =IF(Стимуляторы!D3="Рекуперант альфа М",0.5^(COUNTIF(Стимуляторы!$D$3,"Рекуперант альфа М")+AB19+AB20-1)*$D$34,0) -> 0.11 | S21: =IF(Стимуляторы!E3="Рекуперант альфа М",0.5^(COUNTIF(Стимуляторы!$D$3:E3,"Рекуперант альфа М")+$AB$19+$AB$20-1)*$D$34,0) -> 0 | T21: =IF(Стимуляторы!F3="Рекуперант альфа М",0.5^(COUNTIF(Стимуляторы!$D$3:F3,"Рекуперант альфа М")+$AB$19+$AB$20-1)*$D$34,0) -> 0 | U21: =IF(Стимуляторы!G3="Рекуперант альфа М",0.5^(COUNTIF(Стимуляторы!$D$3:G3,"Рекуперант альфа М")+$AB$19+$AB$20-1)*$D$34,0) -> 0 | V21: =IF(Стимуляторы!H3="Рекуперант альфа М",0.5^(COUNTIF(Стимуляторы!$D$3:H3,"Рекуперант альфа М")+$AB$19+$AB$20-1)*$D$34,0) -> 0 | W21: =IF(Стимуляторы!I3="Рекуперант альфа М",0.5^(COUNTIF(Стимуляторы!$D$3:I3,"Рекуперант альфа М")+$AB$19+$AB$20-1)*$D$34,0) -> 0 | X21: =IF(Стимуляторы!J3="Рекуперант альфа М",0.5^(COUNTIF(Стимуляторы!$D$3:J3,"Рекуперант альфа М")+$AB$19+$AB$20-1)*$D$34,0) -> 0 | Y21: =IF(Стимуляторы!K3="Рекуперант альфа М",0.5^(COUNTIF(Стимуляторы!$D$3:K3,"Рекуперант альфа М")+$AB$19+$AB$20-1)*$D$34,0) -> 0 | Z21: =IF(Стимуляторы!L3="Рекуперант альфа М",0.5^(COUNTIF(Стимуляторы!$D$3:L3,"Рекуперант альфа М")+$AB$19+$AB$20-1)*$D$34,0) -> 0 | AA21: =IF(Стимуляторы!M3="Рекуперант альфа М",0.5^(COUNTIF(Стимуляторы!$D$3:M3,"Рекуперант альфа М")+$AB$19+$AB$20-1)*$D$34,0) -> 0 | AB21: 1 | AC21: Вост. эфф. | AD21: =IF(Стимуляторы!D3="Рекуперант альфа М",0.5^(COUNTIF(Стимуляторы!$D$3,"Рекуперант альфа М")+AN19+AN20-1)*$F$34,0) -> 8 | AE21: =IF(Стимуляторы!E3="Рекуперант альфа М",0.5^(COUNTIF(Стимуляторы!$D$3:E3,"Рекуперант альфа М")+$AN$19+$AN$20-1)*$F$34,0) -> 0 | AF21: =IF(Стимуляторы!F3="Рекуперант альфа М",0.5^(COUNTIF(Стимуляторы!$D$3:F3,"Рекуперант альфа М")+$AN$19+$AN$20-1)*$F$34,0) -> 0 | AG21: =IF(Стимуляторы!G3="Рекуперант альфа М",0.5^(COUNTIF(Стимуляторы!$D$3:G3,"Рекуперант альфа М")+$AN$19+$AN$20-1)*$F$34,0) -> 0 | AH21: =IF(Стимуляторы!H3="Рекуперант альфа М",0.5^(COUNTIF(Стимуляторы!$D$3:H3,"Рекуперант альфа М")+$AN$19+$AN$20-1)*$F$34,0) -> 0 | AI21: =IF(Стимуляторы!I3="Рекуперант альфа М",0.5^(COUNTIF(Стимуляторы!$D$3:I3,"Рекуперант альфа М")+$AN$19+$AN$20-1)*$F$34,0) -> 0 | AJ21: =IF(Стимуляторы!J3="Рекуперант альфа М",0.5^(COUNTIF(Стимуляторы!$D$3:J3,"Рекуперант альфа М")+$AN$19+$AN$20-1)*$F$34,0) -> 0 | AK21: =IF(Стимуляторы!K3="Рекуперант альфа М",0.5^(COUNTIF(Стимуляторы!$D$3:K3,"Рекуперант альфа М")+$AN$19+$AN$20-1)*$F$34,0) -> 0 | AL21: =IF(Стимуляторы!L3="Рекуперант альфа М",0.5^(COUNTIF(Стимуляторы!$D$3:L3,"Рекуперант альфа М")+$AN$19+$AN$20-1)*$F$34,0) -> 0 | AM21: =IF(Стимуляторы!M3="Рекуперант альфа М",0.5^(COUNTIF(Стимуляторы!$D$3:M3,"Рекуперант альфа М")+$AN$19+$AN$20-1)*$F$34,0) -> 0 | AN21: 1
A22: Фервепост альфа | C22: Урон | D22: 0.1 | M22: токсичность | N22: 5 | P22: Рекуперант бета М | Q22: регенирация | R22: =IF(Стимуляторы!$D$3="Рекуперант бета М",0.5^(COUNTIF(Стимуляторы!$D$3,"Рекуперант бета М")+AB19+AB20+AB21-1)*$D$41,0) -> 0 | S22: =IF(Стимуляторы!E3="Рекуперант бета М",0.5^(COUNTIF(Стимуляторы!$D$3:E3,"Рекуперант бета М")+$AB$19+$AB$20+$AB$21-1)*$D$41,0) -> 0 | T22: =IF(Стимуляторы!F3="Рекуперант бета М",0.5^(COUNTIF(Стимуляторы!$D$3:F3,"Рекуперант бета М")+$AB$19+$AB$20+$AB$21-1)*$D$40,0) -> 0 | U22: =IF(Стимуляторы!G3="Рекуперант бета М",0.5^(COUNTIF(Стимуляторы!$D$3:G3,"Рекуперант бета М")+$AB$19+$AB$20+$AB$21-1)*$D$40,0) -> 0 | V22: =IF(Стимуляторы!H3="Рекуперант бета М",0.5^(COUNTIF(Стимуляторы!$D$3:H3,"Рекуперант бета М")+$AB$19+$AB$20+$AB$21-1)*$D$40,0) -> 0 | W22: =IF(Стимуляторы!I3="Рекуперант бета М",0.5^(COUNTIF(Стимуляторы!$D$3:I3,"Рекуперант бета М")+$AB$19+$AB$20+$AB$21-1)*$D$40,0) -> 0 | X22: =IF(Стимуляторы!J3="Рекуперант бета М",0.5^(COUNTIF(Стимуляторы!$D$3:J3,"Рекуперант бета М")+$AB$19+$AB$20+$AB$21-1)*$D$40,0) -> 0 | Y22: =IF(Стимуляторы!K3="Рекуперант бета М",0.5^(COUNTIF(Стимуляторы!$D$3:K3,"Рекуперант бета М")+$AB$19+$AB$20+$AB$21-1)*$D$40,0) -> 0 | Z22: =IF(Стимуляторы!L3="Рекуперант бета М",0.5^(COUNTIF(Стимуляторы!$D$3:L3,"Рекуперант бета М")+$AB$19+$AB$20+$AB$21-1)*$D$40,0) -> 0 | AA22: =IF(Стимуляторы!M3="Рекуперант бета М",0.5^(COUNTIF(Стимуляторы!$D$3:M3,"Рекуперант бета М")+$AB$19+$AB$20+$AB$21-1)*$D$40,0) -> 0 | AB22: 0 | AC22: Вост. эфф. | AD22: =IF(Стимуляторы!$D$3="Рекуперант бета М",0.5^(COUNTIF(Стимуляторы!$D$3,"Рекуперант бета М")+AN19+AN20+AN21-1)*$F$41,0) -> 0 | AE22: =IF(Стимуляторы!E3="Рекуперант бета М",0.5^(COUNTIF(Стимуляторы!$D$3:E3,"Рекуперант бета М")+$AN$19+$AN$20+$AN$21-1)*$F$41,0) -> 0 | AF22: =IF(Стимуляторы!F3="Рекуперант бета М",0.5^(COUNTIF(Стимуляторы!$D$3:F3,"Рекуперант бета М")+$AN$19+$AN$20+$AN$21-1)*$F$41,0) -> 0 | AG22: =IF(Стимуляторы!G3="Рекуперант бета М",0.5^(COUNTIF(Стимуляторы!$D$3:G3,"Рекуперант бета М")+$AN$19+$AN$20+$AN$21-1)*$F$41,0) -> 0 | AH22: =IF(Стимуляторы!H3="Рекуперант бета М",0.5^(COUNTIF(Стимуляторы!$D$3:H3,"Рекуперант бета М")+$AN$19+$AN$20+$AN$21-1)*$F$41,0) -> 0 | AI22: =IF(Стимуляторы!I3="Рекуперант бета М",0.5^(COUNTIF(Стимуляторы!$D$3:I3,"Рекуперант бета М")+$AN$19+$AN$20+$AN$21-1)*$F$41,0) -> 0 | AJ22: =IF(Стимуляторы!J3="Рекуперант бета М",0.5^(COUNTIF(Стимуляторы!$D$3:J3,"Рекуперант бета М")+$AN$19+$AN$20+$AN$21-1)*$F$41,0) -> 0 | AK22: =IF(Стимуляторы!K3="Рекуперант бета М",0.5^(COUNTIF(Стимуляторы!$D$3:K3,"Рекуперант бета М")+$AN$19+$AN$20+$AN$21-1)*$F$41,0) -> 0 | AL22: =IF(Стимуляторы!L3="Рекуперант бета М",0.5^(COUNTIF(Стимуляторы!$D$3:L3,"Рекуперант бета М")+$AN$19+$AN$20+$AN$21-1)*$F$41,0) -> 0 | AM22: =IF(Стимуляторы!M3="Рекуперант бета М",0.5^(COUNTIF(Стимуляторы!$D$3:M3,"Рекуперант бета М")+$AN$19+$AN$20+$AN$21-1)*$F$41,0) -> 0 | AN22: 0
R23: =IF(Стимуляторы!D23="гемобуфер альфа",0.5^(COUNTIF(Стимуляторы!D23,"гемобуфер альфа")+AB22-1)*$D$24,0) -> 0 | S23: =IF(Стимуляторы!E22="гемобуфер бета",0.5^(COUNTIF(Стимуляторы!D28:E28,"Здоровье")-1)*$D$24,0) -> 0 | T23: =IF(Стимуляторы!F23="гемобуфер альфа",0.5^(COUNTIF(Стимуляторы!D23:F24,"гемобуфер альфа")-1)*$D$17,0) -> 0 | U23: =IF(Стимуляторы!G23="гемобуфер альфа",0.5^(COUNTIF(Стимуляторы!D23:G24,"гемобуфер альфа")-1)*$D$17,0) -> 0 | V23: =IF(Стимуляторы!H23="гемобуфер альфа",0.5^(COUNTIF(Стимуляторы!D23:H24,"гемобуфер альфа")-1)*$D$17,0) -> 0 | W23: =IF(Стимуляторы!I23="гемобуфер альфа",0.5^(COUNTIF(Стимуляторы!D23:I24,"гемобуфер альфа")-1)*$D$17,0) -> 0 | X23: =IF(Стимуляторы!J23="гемобуфер альфа",0.5^(COUNTIF(Стимуляторы!D23:J24,"гемобуфер альфа")-1)*$D$17,0) -> 0 | Y23: =IF(Стимуляторы!K23="гемобуфер альфа",0.5^(COUNTIF(Стимуляторы!D23:K24,"гемобуфер альфа")-1)*$D$17,0) -> 0 | Z23: =IF(Стимуляторы!L23="гемобуфер альфа",0.5^(COUNTIF(Стимуляторы!D23:L24,"гемобуфер альфа")-1)*$D$17,0) -> 0 | AA23: =IF(Стимуляторы!M23="гемобуфер альфа",0.5^(COUNTIF(Стимуляторы!D23:M24,"гемобуфер альфа")-1)*$D$17,0) -> 0 | AB23: =COUNTIF(R23:AA23,">0") -> 0
A24: Гемобуфер Бета | C24: Здоровье | D24: 0.2 | E24: Сопр. эфф. | F24: 30 | M24: токсичность | N24: 5 | P24: Репульсин альфа | Q24: Сниж. урона | R24: =IF(Стимуляторы!D3="Репульсин альфа",0.5^(COUNTIF(Стимуляторы!$D$3,"Репульсин альфа")-1)*$D$21,0) -> 0 | S24: =IF(Стимуляторы!E3="Репульсин альфа",0.5^(COUNTIF(Стимуляторы!$D$3:E3,"Репульсин альфа")-1)*$D$21,0) -> 0 | T24: =IF(Стимуляторы!F3="Репульсин альфа",0.5^(COUNTIF(Стимуляторы!$D$3:F3,"Репульсин альфа")-1)*$D$21,0) -> 0 | U24: =IF(Стимуляторы!G3="Репульсин альфа",0.5^(COUNTIF(Стимуляторы!$D$3:G3,"Репульсин альфа")-1)*$D$21,0) -> 0 | V24: =IF(Стимуляторы!H3="Репульсин альфа",0.5^(COUNTIF(Стимуляторы!$D$3:H3,"Репульсин альфа")-1)*$D$21,0) -> 0 | W24: =IF(Стимуляторы!I3="Репульсин альфа",0.5^(COUNTIF(Стимуляторы!$D$3:I3,"Репульсин альфа")-1)*$D$21,0) -> 0 | X24: =IF(Стимуляторы!J3="Репульсин альфа",0.5^(COUNTIF(Стимуляторы!$D$3:J3,"Репульсин альфа")-1)*$D$21,0) -> 0 | Y24: =IF(Стимуляторы!K3="Репульсин альфа",0.5^(COUNTIF(Стимуляторы!$D$3:K3,"Репульсин альфа")-1)*$D$21,0) -> 0 | Z24: =IF(Стимуляторы!L3="Репульсин альфа",0.5^(COUNTIF(Стимуляторы!$D$3:L3,"Репульсин альфа")-1)*$D$21,0) -> 0 | AA24: =IF(Стимуляторы!M3="Репульсин альфа",0.5^(COUNTIF(Стимуляторы!$D$3:M3,"Репульсин альфа")-1)*$D$21,0) -> 0 | AB24: 0 | AC24: крит.защита | AD24: =IF(Стимуляторы!D3="Репульсин альфа",0.5^(COUNTIF(Стимуляторы!$D$3:D3,"Репульсин альфа")-1)*$F$21,0) -> 0 | AE24: =IF(Стимуляторы!E3="Репульсин альфа",0.5^(COUNTIF(Стимуляторы!$D$3:E3,"Репульсин альфа")-1)*$F$21,0) -> 0 | AF24: =IF(Стимуляторы!F3="Репульсин альфа",0.5^(COUNTIF(Стимуляторы!$D$3:F3,"Репульсин альфа")-1)*$F$21,0) -> 0 | AG24: =IF(Стимуляторы!G3="Репульсин альфа",0.5^(COUNTIF(Стимуляторы!$D$3:G3,"Репульсин альфа")-1)*$F$21,0) -> 0 | AH24: =IF(Стимуляторы!H3="Репульсин альфа",0.5^(COUNTIF(Стимуляторы!$D$3:H3,"Репульсин альфа")-1)*$F$21,0) -> 0 | AI24: =IF(Стимуляторы!I3="Репульсин альфа",0.5^(COUNTIF(Стимуляторы!$D$3:I3,"Репульсин альфа")-1)*$F$21,0) -> 0 | AJ24: =IF(Стимуляторы!J3="Репульсин альфа",0.5^(COUNTIF(Стимуляторы!$D$3:J3,"Репульсин альфа")-1)*$F$21,0) -> 0 | AK24: =IF(Стимуляторы!K3="Репульсин альфа",0.5^(COUNTIF(Стимуляторы!$D$3:K3,"Репульсин альфа")-1)*$F$21,0) -> 0 | AL24: =IF(Стимуляторы!L3="Репульсин альфа",0.5^(COUNTIF(Стимуляторы!$D$3:L3,"Репульсин альфа")-1)*$F$21,0) -> 0 | AM24: =IF(Стимуляторы!M3="Репульсин альфа",0.5^(COUNTIF(Стимуляторы!$D$3:M3,"Репульсин альфа")-1)*$F$21,0) -> 0 | AN24: =COUNTIF(AD24:AM24,">0") -> 0
A25: Моториум бета | C25: ОД | D25: 0.12 | M25: токсичность | N25: 5 | P25: Репульсин бета | Q25: Сниж. урона | R25: =IF(Стимуляторы!$D$3="Репульсин бета",0.5^(COUNTIF(Стимуляторы!$D$3,"Репульсин бета")+AB24-1)*$D$28,0) -> 0 | S25: =IF(Стимуляторы!E3="Репульсин бета",0.5^(COUNTIF(Стимуляторы!$D$3:E3,"Репульсин бета")+$AB$24-1)*$D$28,0) -> 0 | T25: =IF(Стимуляторы!F3="Репульсин бета",0.5^(COUNTIF(Стимуляторы!$D$3:F3,"Репульсин бета")+$AB$24-1)*$D$28,0) -> 0 | U25: =IF(Стимуляторы!G3="Репульсин бета",0.5^(COUNTIF(Стимуляторы!$D$3:G3,"Репульсин бета")+$AB$24-1)*$D$28,0) -> 0 | V25: =IF(Стимуляторы!H3="Репульсин бета",0.5^(COUNTIF(Стимуляторы!$D$3:H3,"Репульсин бета")+$AB$24-1)*$D$28,0) -> 0 | W25: =IF(Стимуляторы!I3="Репульсин бета",0.5^(COUNTIF(Стимуляторы!$D$3:I3,"Репульсин бета")+$AB$24-1)*$D$28,0) -> 0 | X25: =IF(Стимуляторы!J3="Репульсин бета",0.5^(COUNTIF(Стимуляторы!$D$3:J3,"Репульсин бета")+$AB$24-1)*$D$28,0) -> 0 | Y25: =IF(Стимуляторы!K3="Репульсин бета",0.5^(COUNTIF(Стимуляторы!$D$3:K3,"Репульсин бета")+$AB$24-1)*$D$28,0) -> 0 | Z25: =IF(Стимуляторы!L3="Репульсин бета",0.5^(COUNTIF(Стимуляторы!$D$3:L3,"Репульсин бета")+$AB$24-1)*$D$28,0) -> 0 | AA25: =IF(Стимуляторы!M3="Репульсин бета",0.5^(COUNTIF(Стимуляторы!$D$3:M3,"Репульсин бета")+$AB$24-1)*$D$28,0) -> 0 | AB25: 0 | AC25: крит.защита | AD25: =IF(Стимуляторы!D3="Репульсин бета",0.5^(COUNTIF(Стимуляторы!$D$3:D3,"Репульсин бета")+$AN$24-1)*$F$28,0) -> 0 | AE25: =IF(Стимуляторы!E3="Репульсин бета",0.5^(COUNTIF(Стимуляторы!$D$3:E3,"Репульсин бета")+$AN$24-1)*$F$28,0) -> 0 | AF25: =IF(Стимуляторы!F3="Репульсин бета",0.5^(COUNTIF(Стимуляторы!$D$3:F3,"Репульсин бета")+$AN$24-1)*$F$28,0) -> 0 | AG25: =IF(Стимуляторы!G3="Репульсин бета",0.5^(COUNTIF(Стимуляторы!$D$3:G3,"Репульсин бета")+$AN$24-1)*$F$28,0) -> 0 | AH25: =IF(Стимуляторы!H3="Репульсин бета",0.5^(COUNTIF(Стимуляторы!$D$3:H3,"Репульсин бета")+$AN$24-1)*$F$28,0) -> 0 | AI25: =IF(Стимуляторы!I3="Репульсин бета",0.5^(COUNTIF(Стимуляторы!$D$3:I3,"Репульсин бета")+$AN$24-1)*$F$28,0) -> 0 | AJ25: =IF(Стимуляторы!J3="Репульсин бета",0.5^(COUNTIF(Стимуляторы!$D$3:J3,"Репульсин бета")+$AN$24-1)*$F$28,0) -> 0 | AK25: =IF(Стимуляторы!K3="Репульсин бета",0.5^(COUNTIF(Стимуляторы!$D$3:K3,"Репульсин бета")+$AN$24-1)*$F$28,0) -> 0 | AL25: =IF(Стимуляторы!L3="Репульсин бета",0.5^(COUNTIF(Стимуляторы!$D$3:L3,"Репульсин бета")+$AN$24-1)*$F$28,0) -> 0 | AM25: =IF(Стимуляторы!M3="Репульсин бета",0.5^(COUNTIF(Стимуляторы!$D$3:M3,"Репульсин бета")+$AN$24-1)*$F$28,0) -> 0 | AN25: =COUNTIF(AD25:AM25,">0") -> 0
A26: Перцептил бета | C26: Точность | D26: 0.12 | E26: Крит. поп. | F26: 0.12 | G26: Эфф.боепр. | H26: 0.12 | M26: токсичность | N26: 4 | P26: Репульсин альфа М | Q26: Сниж. урона | R26: =IF(Стимуляторы!D3="Репульсин альфа М",0.5^(COUNTIF(Стимуляторы!$D$3,"Репульсин альфа М")+AB24+AB25-1)*$D$35,0) -> 0 | S26: =IF(Стимуляторы!E3="Репульсин альфа М",0.5^(COUNTIF(Стимуляторы!$D$3:E3,"Репульсин альфа М")+$AB$24+$AB$25-1)*$D$35,0) -> 0 | T26: =IF(Стимуляторы!F3="Репульсин альфа М",0.5^(COUNTIF(Стимуляторы!$D$3:F3,"Репульсин альфа М")+$AB$24+$AB$25-1)*$D$35,0) -> 0 | U26: =IF(Стимуляторы!G3="Репульсин альфа М",0.5^(COUNTIF(Стимуляторы!$D$3:G3,"Репульсин альфа М")+$AB$24+$AB$25-1)*$D$35,0) -> 0 | V26: =IF(Стимуляторы!H3="Репульсин альфа М",0.5^(COUNTIF(Стимуляторы!$D$3:H3,"Репульсин альфа М")+$AB$24+$AB$25-1)*$D$35,0) -> 0 | W26: =IF(Стимуляторы!I3="Репульсин альфа М",0.5^(COUNTIF(Стимуляторы!$D$3:I3,"Репульсин альфа М")+$AB$24+$AB$25-1)*$D$35,0) -> 0 | X26: =IF(Стимуляторы!J3="Репульсин альфа М",0.5^(COUNTIF(Стимуляторы!$D$3:J3,"Репульсин альфа М")+$AB$24+$AB$25-1)*$D$35,0) -> 0 | Y26: =IF(Стимуляторы!K3="Репульсин альфа М",0.5^(COUNTIF(Стимуляторы!$D$3:K3,"Репульсин альфа М")+$AB$24+$AB$25-1)*$D$35,0) -> 0 | Z26: =IF(Стимуляторы!L3="Репульсин альфа М",0.5^(COUNTIF(Стимуляторы!$D$3:L3,"Репульсин альфа М")+$AB$24+$AB$25-1)*$D$35,0) -> 0 | AA26: =IF(Стимуляторы!M3="Репульсин альфа М",0.5^(COUNTIF(Стимуляторы!$D$3:M3,"Репульсин альфа М")+$AB$24+$AB$25-1)*$D$35,0) -> 0 | AB26: 0 | AC26: крит.защита | AD26: =IF(Стимуляторы!D3="Репульсин альфа М",0.5^(COUNTIF(Стимуляторы!$D$3:D3,"Репульсин альфа М")+$AN$24+$AN$25-1)*$F$35,0) -> 0 | AE26: =IF(Стимуляторы!E3="Репульсин альфа М",0.5^(COUNTIF(Стимуляторы!$D$3:E3,"Репульсин альфа М")+$AN$24+$AN$25-1)*$F$35,0) -> 0 | AF26: =IF(Стимуляторы!F3="Репульсин альфа М",0.5^(COUNTIF(Стимуляторы!$D$3:F3,"Репульсин альфа М")+$AN$24+$AN$25-1)*$F$35,0) -> 0 | AG26: =IF(Стимуляторы!G3="Репульсин альфа М",0.5^(COUNTIF(Стимуляторы!$D$3:G3,"Репульсин альфа М")+$AN$24+$AN$25-1)*$F$35,0) -> 0 | AH26: =IF(Стимуляторы!H3="Репульсин альфа М",0.5^(COUNTIF(Стимуляторы!$D$3:H3,"Репульсин альфа М")+$AN$24+$AN$25-1)*$F$35,0) -> 0 | AI26: =IF(Стимуляторы!I3="Репульсин альфа М",0.5^(COUNTIF(Стимуляторы!$D$3:I3,"Репульсин альфа М")+$AN$24+$AN$25-1)*$F$35,0) -> 0 | AJ26: =IF(Стимуляторы!J3="Репульсин альфа М",0.5^(COUNTIF(Стимуляторы!$D$3:J3,"Репульсин альфа М")+$AN$24+$AN$25-1)*$F$35,0) -> 0 | AK26: =IF(Стимуляторы!K3="Репульсин альфа М",0.5^(COUNTIF(Стимуляторы!$D$3:K3,"Репульсин альфа М")+$AN$24+$AN$25-1)*$F$35,0) -> 0 | AL26: =IF(Стимуляторы!L3="Репульсин альфа М",0.5^(COUNTIF(Стимуляторы!$D$3:L3,"Репульсин альфа М")+$AN$24+$AN$25-1)*$F$35,0) -> 0 | AM26: =IF(Стимуляторы!M3="Репульсин альфа М",0.5^(COUNTIF(Стимуляторы!$D$3:M3,"Репульсин альфа М")+$AN$24+$AN$25-1)*$F$35,0) -> 0 | AN26: =COUNTIF(AD26:AM26,">0") -> 0
A27: Рекуперант бета | C27: регенирация | D27: 0.11 | E27: Вост. эфф. | F27: 8 | M27: токсичность | N27: 5 | P27: Репульсин бета М | Q27: Сниж. урона | R27: =IF(Стимуляторы!$D$3="Рекуперант бета М",0.5^(COUNTIF(Стимуляторы!$D$3,"Рекуперант бета М")+AB24+AB25+AB26-1)*$D$42,0) -> 0 | S27: =IF(Стимуляторы!E3="Репульсин бета М",0.5^(COUNTIF(Стимуляторы!$D$3:E3,"Репульсин бета М")+$AB$24+$AB$25+$AB$26-1)*$D$42,0) -> 0 | T27: =IF(Стимуляторы!F3="Репульсин бета М",0.5^(COUNTIF(Стимуляторы!$D$3:F3,"Репульсин бета М")+$AB$24+$AB$25+$AB$26-1)*$D$42,0) -> 0 | U27: =IF(Стимуляторы!G3="Репульсин бета М",0.5^(COUNTIF(Стимуляторы!$D$3:G3,"Репульсин бета М")+$AB$24+$AB$25+$AB$26-1)*$D$42,0) -> 0 | V27: =IF(Стимуляторы!H3="Репульсин бета М",0.5^(COUNTIF(Стимуляторы!$D$3:H3,"Репульсин бета М")+$AB$24+$AB$25+$AB$26-1)*$D$42,0) -> 0 | W27: =IF(Стимуляторы!I3="Репульсин бета М",0.5^(COUNTIF(Стимуляторы!$D$3:I3,"Репульсин бета М")+$AB$24+$AB$25+$AB$26-1)*$D$42,0) -> 0 | X27: =IF(Стимуляторы!J3="Репульсин бета М",0.5^(COUNTIF(Стимуляторы!$D$3:J3,"Репульсин бета М")+$AB$24+$AB$25+$AB$26-1)*$D$42,0) -> 0 | Y27: =IF(Стимуляторы!K3="Репульсин бета М",0.5^(COUNTIF(Стимуляторы!$D$3:K3,"Репульсин бета М")+$AB$24+$AB$25+$AB$26-1)*$D$42,0) -> 0 | Z27: =IF(Стимуляторы!L3="Репульсин бета М",0.5^(COUNTIF(Стимуляторы!$D$3:L3,"Репульсин бета М")+$AB$24+$AB$25+$AB$26-1)*$D$42,0) -> 0 | AA27: =IF(Стимуляторы!M3="Репульсин бета М",0.5^(COUNTIF(Стимуляторы!$D$3:M3,"Репульсин бета М")+$AB$24+$AB$25+$AB$26-1)*$D$42,0) -> 0 | AB27: 0 | AC27: крит.защита | AD27: =IF(Стимуляторы!D3="Репульсин бета М",0.5^(COUNTIF(Стимуляторы!$D$3:D3,"Репульсин бета М")+$AN$24+$AN$25+$AN$26-1)*$F$42,0) -> 0 | AE27: =IF(Стимуляторы!E3="Репульсин бета М",0.5^(COUNTIF(Стимуляторы!$D$3:E3,"Репульсин бета М")+$AN$24+$AN$25+$AN$26-1)*$F$42,0) -> 0 | AF27: =IF(Стимуляторы!F3="Репульсин бета М",0.5^(COUNTIF(Стимуляторы!$D$3:F3,"Репульсин бета М")+$AN$24+$AN$25+$AN$26-1)*$F$42,0) -> 0 | AG27: =IF(Стимуляторы!G3="Репульсин бета М",0.5^(COUNTIF(Стимуляторы!$D$3:G3,"Репульсин бета М")+$AN$24+$AN$25+$AN$26-1)*$F$42,0) -> 0 | AH27: =IF(Стимуляторы!H3="Репульсин бета М",0.5^(COUNTIF(Стимуляторы!$D$3:H3,"Репульсин бета М")+$AN$24+$AN$25+$AN$26-1)*$F$42,0) -> 0 | AI27: =IF(Стимуляторы!I3="Репульсин бета М",0.5^(COUNTIF(Стимуляторы!$D$3:I3,"Репульсин бета М")+$AN$24+$AN$25+$AN$26-1)*$F$42,0) -> 0 | AJ27: =IF(Стимуляторы!J3="Репульсин бета М",0.5^(COUNTIF(Стимуляторы!$D$3:J3,"Репульсин бета М")+$AN$24+$AN$25+$AN$26-1)*$F$42,0) -> 0 | AK27: =IF(Стимуляторы!K3="Репульсин бета М",0.5^(COUNTIF(Стимуляторы!$D$3:K3,"Репульсин бета М")+$AN$24+$AN$25+$AN$26-1)*$F$42,0) -> 0 | AL27: =IF(Стимуляторы!L3="Репульсин бета М",0.5^(COUNTIF(Стимуляторы!$D$3:L3,"Репульсин бета М")+$AN$24+$AN$25+$AN$26-1)*$F$42,0) -> 0 | AM27: =IF(Стимуляторы!M3="Репульсин бета М",0.5^(COUNTIF(Стимуляторы!$D$3:M3,"Репульсин бета М")+$AN$24+$AN$25+$AN$26-1)*$F$42,0) -> 0 | AN27: =COUNTIF(AD27:AM27,">0") -> 0
A28: Репульсин бета | C28: сниж. урона | D28: 0.06 | E28: крит.защита | F28: 14 | M28: токсичность | N28: 5 | R28: =IF(Стимуляторы!D28="гемобуфер альфа",0.5^(COUNTIF(Стимуляторы!D28,"гемобуфер альфа")+AB27-1)*$D$24,0) -> 0 | S28: =IF(Стимуляторы!E27="гемобуфер бета",0.5^(COUNTIF(Стимуляторы!D33:E33,"Здоровье")-1)*$D$24,0) -> 0 | T28: =IF(Стимуляторы!F28="гемобуфер альфа",0.5^(COUNTIF(Стимуляторы!D28:F29,"гемобуфер альфа")-1)*$D$17,0) -> 0 | U28: =IF(Стимуляторы!G28="гемобуфер альфа",0.5^(COUNTIF(Стимуляторы!D28:G29,"гемобуфер альфа")-1)*$D$17,0) -> 0 | V28: =IF(Стимуляторы!H28="гемобуфер альфа",0.5^(COUNTIF(Стимуляторы!D28:H29,"гемобуфер альфа")-1)*$D$17,0) -> 0 | W28: =IF(Стимуляторы!I28="гемобуфер альфа",0.5^(COUNTIF(Стимуляторы!D28:I29,"гемобуфер альфа")-1)*$D$17,0) -> 0 | X28: =IF(Стимуляторы!J28="гемобуфер альфа",0.5^(COUNTIF(Стимуляторы!D28:J29,"гемобуфер альфа")-1)*$D$17,0) -> 0 | Y28: =IF(Стимуляторы!K28="гемобуфер альфа",0.5^(COUNTIF(Стимуляторы!D28:K29,"гемобуфер альфа")-1)*$D$17,0) -> 0 | Z28: =IF(Стимуляторы!L28="гемобуфер альфа",0.5^(COUNTIF(Стимуляторы!D28:L29,"гемобуфер альфа")-1)*$D$17,0) -> 0 | AA28: =IF(Стимуляторы!M28="гемобуфер альфа",0.5^(COUNTIF(Стимуляторы!D28:M29,"гемобуфер альфа")-1)*$D$17,0) -> 0
A29: Фервепост бета | C29: урон | D29: 0.12 | M29: токсичность | N29: 5 | P29: Фервепост альфа | Q29: урон | R29: =IF(Стимуляторы!D3="Фервепост альфа",0.5^(COUNTIF(Стимуляторы!$D$3:D3,"Фервепост альфа")-1)*$D$22,0) -> 0 | S29: =IF(Стимуляторы!E3="Фервепост альфа",0.5^(COUNTIF(Стимуляторы!$D$3:E3,"Фервепост альфа")-1)*$D$22,0) -> 0 | T29: =IF(Стимуляторы!F3="Фервепост альфа",0.5^(COUNTIF(Стимуляторы!$D$3:F3,"Фервепост альфа")-1)*$D$22,0) -> 0 | U29: =IF(Стимуляторы!G3="Фервепост альфа",0.5^(COUNTIF(Стимуляторы!$D$3:G3,"Фервепост альфа")-1)*$D$22,0) -> 0 | V29: =IF(Стимуляторы!H3="Фервепост альфа",0.5^(COUNTIF(Стимуляторы!$D$3:H3,"Фервепост альфа")-1)*$D$22,0) -> 0 | W29: =IF(Стимуляторы!I3="Фервепост альфа",0.5^(COUNTIF(Стимуляторы!$D$3:I3,"Фервепост альфа")-1)*$D$22,0) -> 0 | X29: =IF(Стимуляторы!J3="Фервепост альфа",0.5^(COUNTIF(Стимуляторы!$D$3:J3,"Фервепост альфа")-1)*$D$22,0) -> 0 | Y29: =IF(Стимуляторы!K3="Фервепост альфа",0.5^(COUNTIF(Стимуляторы!$D$3:K3,"Фервепост альфа")-1)*$D$22,0) -> 0 | Z29: =IF(Стимуляторы!L3="Фервепост альфа",0.5^(COUNTIF(Стимуляторы!$D$3:L3,"Фервепост альфа")-1)*$D$22,0) -> 0 | AA29: =IF(Стимуляторы!M3="Фервепост альфа",0.5^(COUNTIF(Стимуляторы!$D$3:M3,"Фервепост альфа")-1)*$D$22,0) -> 0 | AB29: 0
P30: Фервепост бета | Q30: урон | R30: =IF(Стимуляторы!D3="Фервепост бета",0.5^(COUNTIF(Стимуляторы!$D$3:D3,"Фервепост бета")+$AB$29-1)*$D$29,0) -> 0 | S30: =IF(Стимуляторы!E3="Фервепост бета",0.5^(COUNTIF(Стимуляторы!$D$3:E3,"Фервепост бета")+$AB$29-1)*$D$29,0) -> 0 | T30: =IF(Стимуляторы!F3="Фервепост бета",0.5^(COUNTIF(Стимуляторы!$D$3:F3,"Фервепост бета")+$AB$29-1)*$D$29,0) -> 0 | U30: =IF(Стимуляторы!G3="Фервепост бета",0.5^(COUNTIF(Стимуляторы!$D$3:G3,"Фервепост бета")+$AB$29-1)*$D$29,0) -> 0 | V30: =IF(Стимуляторы!H3="Фервепост бета",0.5^(COUNTIF(Стимуляторы!$D$3:H3,"Фервепост бета")+$AB$29-1)*$D$29,0) -> 0 | W30: =IF(Стимуляторы!I3="Фервепост бета",0.5^(COUNTIF(Стимуляторы!$D$3:I3,"Фервепост бета")+$AB$29-1)*$D$29,0) -> 0 | X30: =IF(Стимуляторы!J3="Фервепост бета",0.5^(COUNTIF(Стимуляторы!$D$3:J3,"Фервепост бета")+$AB$29-1)*$D$29,0) -> 0 | Y30: =IF(Стимуляторы!K3="Фервепост бета",0.5^(COUNTIF(Стимуляторы!$D$3:K3,"Фервепост бета")+$AB$29-1)*$D$29,0) -> 0 | Z30: =IF(Стимуляторы!L3="Фервепост бета",0.5^(COUNTIF(Стимуляторы!$D$3:L3,"Фервепост бета")+$AB$29-1)*$D$29,0) -> 0 | AA30: =IF(Стимуляторы!M3="Фервепост бета",0.5^(COUNTIF(Стимуляторы!$D$3:M3,"Фервепост бета")+$AB$29-1)*$D$29,0) -> 0 | AB30: 0
A31: Гемобуфер Альфа М | C31: Здоровье | D31: 0.2 | E31: Сопр. эфф. | F31: 30 | M31: токсичность | N31: 4 | P31: Фервепост альфа М | Q31: урон | R31: =IF(Стимуляторы!D3="Фервепост альфа М",0.5^(COUNTIF(Стимуляторы!$D$3:D3,"Фервепост альфа М")+$AB$29+$AB$30-1)*$D$36,0) -> 0 | S31: =IF(Стимуляторы!E3="Фервепост альфа М",0.5^(COUNTIF(Стимуляторы!$D$3:E3,"Фервепост альфа М")+$AB$29+$AB$30-1)*$D$36,0) -> 0 | T31: =IF(Стимуляторы!F3="Фервепост альфа М",0.5^(COUNTIF(Стимуляторы!$D$3:F3,"Фервепост альфа М")+$AB$29+$AB$30-1)*$D$36,0) -> 0 | U31: =IF(Стимуляторы!G3="Фервепост альфа М",0.5^(COUNTIF(Стимуляторы!$D$3:G3,"Фервепост альфа М")+$AB$29+$AB$30-1)*$D$36,0) -> 0 | V31: =IF(Стимуляторы!H3="Фервепост альфа М",0.5^(COUNTIF(Стимуляторы!$D$3:H3,"Фервепост альфа М")+$AB$29+$AB$30-1)*$D$36,0) -> 0 | W31: =IF(Стимуляторы!I3="Фервепост альфа М",0.5^(COUNTIF(Стимуляторы!$D$3:I3,"Фервепост альфа М")+$AB$29+$AB$30-1)*$D$36,0) -> 0 | X31: =IF(Стимуляторы!J3="Фервепост альфа М",0.5^(COUNTIF(Стимуляторы!$D$3:J3,"Фервепост альфа М")+$AB$29+$AB$30-1)*$D$36,0) -> 0 | Y31: =IF(Стимуляторы!K3="Фервепост альфа М",0.5^(COUNTIF(Стимуляторы!$D$3:K3,"Фервепост альфа М")+$AB$29+$AB$30-1)*$D$36,0) -> 0 | Z31: =IF(Стимуляторы!L3="Фервепост альфа М",0.5^(COUNTIF(Стимуляторы!$D$3:L3,"Фервепост альфа М")+$AB$29+$AB$30-1)*$D$36,0) -> 0 | AA31: =IF(Стимуляторы!M3="Фервепост альфа М",0.5^(COUNTIF(Стимуляторы!$D$3:M3,"Фервепост альфа М")+$AB$29+$AB$30-1)*$D$36,0) -> 0 | AB31: 0
A32: Моториум альфа М | C32: ОД | D32: 0.14 | M32: токсичность | N32: 4 | P32: Фервепост бета М | Q32: урон | R32: =IF(Стимуляторы!D3="Фервепост бета М",0.5^(COUNTIF(Стимуляторы!$D$3:D3,"Фервепост бета М")+$AB$29+$AB$30+$AB$31-1)*$D$43,0) -> 0 | S32: =IF(Стимуляторы!E3="Фервепост бета М",0.5^(COUNTIF(Стимуляторы!$D$3:E3,"Фервепост бета М")+$AB$29+$AB$30+$AB$31-1)*$D$43,0) -> 0 | T32: =IF(Стимуляторы!F3="Фервепост бета М",0.5^(COUNTIF(Стимуляторы!$D$3:F3,"Фервепост бета М")+$AB$29+$AB$30+$AB$31-1)*$D$43,0) -> 0 | U32: =IF(Стимуляторы!G3="Фервепост бета М",0.5^(COUNTIF(Стимуляторы!$D$3:G3,"Фервепост бета М")+$AB$29+$AB$30+$AB$31-1)*$D$43,0) -> 0 | V32: =IF(Стимуляторы!H3="Фервепост бета М",0.5^(COUNTIF(Стимуляторы!$D$3:H3,"Фервепост бета М")+$AB$29+$AB$30+$AB$31-1)*$D$43,0) -> 0 | W32: =IF(Стимуляторы!I3="Фервепост бета М",0.5^(COUNTIF(Стимуляторы!$D$3:I3,"Фервепост бета М")+$AB$29+$AB$30+$AB$31-1)*$D$43,0) -> 0 | X32: =IF(Стимуляторы!J3="Фервепост бета М",0.5^(COUNTIF(Стимуляторы!$D$3:J3,"Фервепост бета М")+$AB$29+$AB$30+$AB$31-1)*$D$43,0) -> 0 | Y32: =IF(Стимуляторы!K3="Фервепост бета М",0.5^(COUNTIF(Стимуляторы!$D$3:K3,"Фервепост бета М")+$AB$29+$AB$30+$AB$31-1)*$D$43,0) -> 0 | Z32: =IF(Стимуляторы!L3="Фервепост бета М",0.5^(COUNTIF(Стимуляторы!$D$3:L3,"Фервепост бета М")+$AB$29+$AB$30+$AB$31-1)*$D$43,0) -> 0 | AA32: =IF(Стимуляторы!M3="Фервепост бета М",0.5^(COUNTIF(Стимуляторы!$D$3:M3,"Фервепост бета М")+$AB$29+$AB$30+$AB$31-1)*$D$43,0) -> 0 | AB32: 0
A33: Перцептил альфа М | C33: Точность | D33: 0.12 | E33: Крит. поп. | F33: 0.12 | G33: Эфф.боепр. | H33: 0.12 | M33: токсичность | N33: 5
A34: Рекуперант альфа М | C34: регенирация | D34: 0.11 | E34: Вост. эфф. | F34: 8 | M34: токсичность | N34: 4
A35: Репульсин альфа М | C35: сниж. урона | D35: 0.06 | E35: крит.защита | F35: 14 | M35: токсичность | N35: 4
A36: Фервепост альфа М | C36: урон | D36: 0.12 | M36: токсичность | N36: 4
A38: Гемобуфер Бета М | C38: Здоровье | D38: 0.24 | E38: Сопр. эфф. | F38: 35 | M38: токсичность | N38: 4
A39: Моториум бета М | C39: ОД | D39: 0.14 | M39: токсичность | N39: 4
A40: Перцептил бета М | C40: Точность | D40: 0.14 | E40: Крит. поп. | F40: 0.14 | G40: Эфф.боепр. | H40: 0.14 | M40: токсичность | N40: 4
A41: Рекуперант бета М | C41: регенирация | D41: 0.132 | E41: Вост. эфф. | F41: 9 | M41: токсичность | N41: 4
A42: Репульсин бета М | C42: сниж. урона | D42: 0.07 | E42: крит.защита | F42: 16 | M42: токсичность | N42: 4
A43: Фервепост бета М | C43: урон | D43: 0.14 | M43: токсичность | N43: 4
